Workbook

Sheet Einf.
B1: Horst-Günter Krause/Lutz Martiny
B4: Liebe Lionsfreunde,
B6: anläßlich unseres 25-jährigen Jubiläums hat Horst-Günter Krause die Club-Unterlagen gelesen,
B7: nach ihm wesentlich erscheinenden Gesichtspunkten ausgewertet und aufbereitet.
B8: Diese Tabellen hat er bis zum 15.7.2018 ergänzt. Seitdem werden die wesentlichen Blätter von
B9: Lutz Martiny , die Spenden vom Schatzmeister, jeweils jährlich ergänzt.
C10: Die Mappe enthält folgende Blätter:
C12: Tabelle und Grafik Stammdaten und Alterstruktur
C13: Tabelle Amtsinhaber (P, S, SCH, A, C) von der Gründung bis zum Lionsjahr 2021/2022
C14: Tabelle Offizielle Veranstaltungen (mit Filtermöglichkeit)
C15: Tabelle Private Veranstaltungen (mit Filtermöglichkeit)
C16: Tabelle mit Auswertung der Privaten Einladungen
C17: Grafische Darstellung der Struktur unserer Veranstaltungen
C18: Grafische Darstellung der Beteiligung unserer Damen an offiziellen Veranstaltungen
C19: Tabelle Struktur der Veranstaltungen
C20: Tabelle Vorträge je Lionsfreund und Damenbeteiligung je Jahr
C21: Einige Seiten aus dem ersten Gästebuch
C22: Einige Besonderheiten aus dem Club "Merk-Würdiges"
C25: Tabelle der Spenden
B28: Horst-Günter hat alle Seiten der Gästebücher fotografiert und als Bilddateien festgehalten,
B29: die er bei Interesse auf einer CD zur Verfügung stellen kann.
B30: (Auflösung der Bilder 1280x854p, Dateigröße 96MB),
B32: Wir hoffen, daß diese Unterlagen für "Geschichtsforscher" hilfreich sind.

Sheet Adressen
A1: Nr | B1: Name | C1: Vorname | D1: Titel | E1: Beruf | F1: Ehefrau/Partnerin | G1: Anrede | H1: Geb.-Datum | I1: Str | J1: PLZ | K1: Ort | L1: Tel. priv. | M1: Tel. d. | N1: Mobil | O1: E-mail 1 | P1: Email 2 | Q1: Inter. MGL-Nr. | R1: S-Mandat
A2: 1 | B2: Ammenwerth | C2: Richard | D2: Dr.med. | E2: Selbst. Arzt für Orthopädie | F2: Marlies | G2: Herrn | H2: 1945-01-26 | I2: Hudeweg 31 | J2: 33100 | K2: Paderborn | L2: 05251-35622 | M2: 05251-23794 | N2: 0170-3232737 | O2: Richard@Ammenwerth.de | Q2: 754548
A3: 2 | B3: Auffenberg | C3: Christian | E3: Rechtsanwalt und Notar | F3: Susanne | G3: Herrn | H3: 1975-05-08 | I3: Fechtelerstraße 12 D | J3: 33098 | K3: Paderborn | L3: 05251-5439380 | M3: 05251-22512 | N3: 0173-8975021 | O3: Christian.Auffenberg@gmx.de | P3: c.auffenberg@rechtsanwalt-auffenberg.de | Q3: 544820 | R3: LC045
A4: 3 | B4: Bartels* | C4: Günther | D4: Dipl.-Ing. | E4: Ruhestand | F4: Sabi | G4: Herrn | H4: 1935-08-01 | I4: Wilseder Weg 21 | J4: 33102 | K4: Paderborn | L4: 05251-4694 | O4: sabi-guenther-bartels@gmx.de | Q4: 754549
A5: 4 | B5: Baur | C5: Martin | D5: Dr. med. | E5: Chefarzt der Anästhesie Vincenz-Krankenhaus | F5: Dr. Kirsten Baur-Seack | G5: Herrn | H5: 1968-05-11 | I5: Peckelsheimer Weg 29 | J5: 33100 | K5: Paderborn | L5: 05251-1473632 | M5: 05251-86-1585 | N5: 0171-1765117 | O5: baur@gmx.com | Q5: 3834209
A6: 5 | B6: Bee | C6: Peter | D6: Dipl.-Ing. | E6: Architekt | F6: Stefanie | G6: Herrn | H6: 1971-09-11 | I6: Hermann-Löns-Str. 25 A | J6: 33104 | K6: Paderborn | L6: 05254-9279366 | M6: 05254-9304580 | N6: 0176-10332794 | O6: Bee@planbee-architekten.de | Q6: 3897233
A7: 6 | B7: Brors | C7: Dominik | D7: Priv.-Doz. Dr. med. | E7: HNO Arzt | F7: Prof. Dr. Maria Schäfers | G7: Herrn | H7: 1969-06-28 | I7: Schorlemerstr. 24 | J7: 33098 | K7: Paderborn | L7: 05251-1488345 | O7: drbrors@t-online.de | Q7: 3399470
A8: 7 | B8: Deter | C8: Gerhard | D8: Priv. Doz Dr. jur. Dr. phil. | F8: Dr. Anne | G8: Herrn | H8: 1950-04-20 | I8: Graf-Sporck-Str. 2 | J8: 33129 | K8: Delbrück | L8: 05250-53383 | O8: Gerhard.Deter@t-online.de | Q8: 2776013 | R8: LC044
A9: 8 | B9: Feldmann* | C9: Ulrich | E9: Oberstaatsanwalt a.D. | F9: Brigitte | G9: Herrn | H9: 1936-06-25 | I9: Sylter Weg 10 | J9: 33102 | K9: Paderborn | L9: 05251-48743 | N9: 0171-7418434 | O9: uba.feldmann@web.de | Q9: 754551
A10: 9 | B10: Friemuth | C10: Klaus | D10: Dipl.-Ing. | E10: Geschäftsf. Ges. Friemuth GmbH&Co.KG Hoch- u. Tiefbau | F10: Marlies | G10: Herrn | H10: 1939-04-04 | I10: Annette-von-Droste-Str. 26 | J10: 33098 | K10: Paderborn | L10: 05251-61101 | M10: 05251-1772-22 | N10: 0163-8817730 | O10: info@friemuth.de | Q10: 754552
A11: 10 | B11: Hollmann | C11: Benjamin | D11: Dipl.Wirtschaftsinformatiker | E11: Weidmüller in Detmold | F11: Mona | G11: Herrn | H11: 1981-06-30 | I11: Dörener Weg 115 | J11: 33100 | K11: Paderborn | L11: 52511428283 | M11: 05231-14-292527 | N11: 0171-2626385 | O11: benhollmann@gmx.de | Q11: 4596035
A12: 11 | B12: Jacoby | C12: Franz | E12: Geschaftsf. Ges. TAP-Design Brakel | F12: Doris | G12: Herrn | H12: 1947-04-16 | I12: Westernstr. 1 | J12: 33098 | K12: Paderborn | L12: 05251-22469 | M12: 05272-602-124 | N12: 0172-8096962 | O12: franz.jacoby@tap-holding.de | Q12: 754555
A13: 12 | B13: Joepen | C13: Horst | D13: Dipl.-Ing. | F13: Gabi | G13: Herrn | H13: 1957-11-25 | I13: Arnikaweg 57 | J13: 33100 | K13: Paderborn | L13: 05251-65897 | M13: 05251-500540 | N13: 0171-5501496 | O13: horst.joepen@joepen-itconsult.com | Q13: 754556
A14: 13 | B14: Käter | C14: Ansgar | E14: Vorstandsvorsitzender Volksbank Paderborn | F14: Rita Brink-Käter | G14: Herrn | H14: 1971-03-12 | I14: Gotenweg 12 | J14: 33100 | K14: Paderborn | L14: 05251-5456100 | N14: 0151-67526995 | O14: Akaeter@web.de | Q14: 4820089
A15: 14 | B15: Keysers* | C15: Ludger | E15: GF I2 Ingenieurgemeinschaft Industrieboden GmbH | F15: Silvia | G15: Herrn | H15: 1960-05-29 | I15: Amselhainstraße 71 | J15: 14612 | K15: Falkensee | N15: 0171-7304222 | O15: Ludger@keysers.de | P15: keysers@i2-industrieboden.de | Q15: 2479166
A16: 15 | B16: Krause* | C16: Horst-Günter | D16: Dipl.-Kfm. | E16: Vorstandsmitglied a.D. PESAG AG | F16: Dorit | G16: Herrn | H16: 1940-09-11 | I16: Joseph-Brockmann-Weg 3 | J16: 33102 | K16: Paderborn | L16: 05251-310885 | N16: 0172-5233463 | O16: horst-guenter.krause@paderborn.com | Q16: 759935
A17: 16 | B17: Krings | C17: Wolfgang | D17: Priv.-Doz. Dr.med. | E17: Chefarzt d. Radiologie Vincenz-Krankenhaus a.D. | F17: Maria | G17: Herrn | H17: 1955-03-25 | I17: Bergheimer Weg 18 | J17: 33100 | K17: Paderborn | L17: 05251-66248 | M17: 05251-861551 | N17: 0173-5351618 | O17: w.krings@paderborn.com | Q17: 759936
A18: 17 | B18: Kühle | C18: Martin | D18: LL.M. | E18: Rechtsanwalt und Wirtschaftsmediator | F18: Angela | G18: Herrn | H18: 1967-12-09 | I18: Am Glockenbusch 3 | J18: 33106 | K18: Paderborn | L18: 05254-6496350 | M18: 05253-342756 | N18: 0170-2096202 | O18: m.kuehle@gmx.de | Q18: 5203009
A19: 18 | B19: Lücke* | C19: Roland | D19: Dr. | E19: Ruhestand | F19: Ingrid Willaschek | G19: Herrn | H19: 1942-05-26 | I19: Deipenweg 32 | J19: 33104 | K19: Paderborn | L19: 05254-12633 | O19: rol.cke@t-online.de | Q19: 759939
A20: 19 | B20: Martiny | C20: Lutz | D20: Dr.- Ing. | G20: Herrn | H20: 1943-02-04 | I20: Magnolienweg 2 | J20: 33129 | K20: Delbrück-Hagen | L20: 05250-932039 | N20: 0171-5031791 | O20: lutz@martiny.biz | Q20: 2555306
A21: 20 | B21: Nöcker | C21: Dietrich | D21: Dr.med. | E21: Chefarzt d. Radiologie Brüder-Krankenhaus a.D. | F21: Uta | G21: Herrn | H21: 1942-09-26 | I21: Corveyer Weg 26 | J21: 33098 | K21: Paderborn | L21: 05251-64173 | M21: 05251-7021300 | N21: 0176-66696448 | O21: d_noecker@t-online.de | Q21: 759941
A22: 21 | B22: Oberheide | C22: Henning | E22: Geschäftsf. d. Einzelhandelsverbandes a.D. | G22: Herrn | H22: 1947-11-23 | I22: Im Lichtenfelde 72 | J22: 33100 | K22: Paderborn | L22: 05251-61776 | O22: henning.oberheide@t-online.de | Q22: 759942
A23: 22 | B23: Ortner | C23: Gerhard E. | D23: Uni.-Prof. Dr. Dr. | E23: Uni-Prof. Fernuni-Hagen | F23: Renate | G23: Herrn | H23: 1940-09-18 | I23: Busdorfmauer 36 | J23: 33098 | K23: Paderborn | L23: 05251-25962 | M23: 05251-13299-0 | O23: Ortner@medienhaus-paderborn.de | Q23: 759943
A24: 23 | B24: Plonka | C24: Marek | F24: Ina | G24: Herrn | H24: 1966-07-15 | I24: Dedinghauser Weg 10 | J24: 33189 | K24: Schlangen | L24: 05252-973649 | M24: 05252-7344 | N24: 0172-5263628 | O24: marek.plonka@gmx.de | Q24: 3504725
A25: 24 | B25: Plückebaum* | C25: Andreas | F25: Ursula | G25: Herrn | H25: 1966-12-16 | I25: Anton-Hartmann-Str. 9 | J25: 33106 | K25: Paderborn | N25: 0172-5241477 | O25: info@cafe-plueckebaum.de | Q25: 5070911
A26: 25 | B26: Porcelli | C26: David | E26: Weinhändler | G26: Herrn | H26: 1981-07-12 | I26: Hermannstraße 21 | J26: 33142 | K26: Büren | L26: 02951-9385782 | M26: 02951-5567 | N26: 0152-06416729 | O26: David@Porcelli.de | Q26: 6049529 | R26: LC048
A27: 26 | B27: Preising | C27: Andreas | E27: Leiter Liegenschaftsamt - Stadt Paderborn i.R. | F27: Gisela | G27: Herrn | H27: 1958-10-09 | I27: Steinbrede 9 | J27: 33106 | K27: Paderborn-Elsen | L27: 05254-60225 | M27: 05251-881563 | N27: 0171-4462285 | O27: andreas.preising@gmx.de | P27: A.Preising@Paderborn.de | Q27: 759944
A28: 27 | B28: Reller | C28: Ralf | D28: Dipl.Kfm. | E28: Inhaber Automobilie Reller | F28: Diana Metten-Reller | G28: Herrn | H28: 1971-06-28 | I28: Hüfferweg 11 | J28: 33100 | K28: Paderborn | L28: 05251-67661 | M28: 05251-740040 | N28: 015155055056 | O28: ralf.reller@reller-automobile.de | Q28: 5086100
A29: 28 | B29: Richard | C29: Hans Albert | D29: Prof. Dr. Ing. | E29: Uni-Prof. Uni Pb | F29: Silvia | G29: Herrn | H29: 1949-09-22 | I29: Bergheimer Weg 24 | J29: 33100 | K29: Paderborn | L29: 05251-65952 | M29: 05251-602203 | N29: 0174-2084806 | O29: Richard@fam.uni-paderborn.de | Q29: 759945
A30: 29 | B30: Rimrod | C30: Fredrik | E30: Apotheker | F30: Franziska | G30: Herrn | H30: 1980-08-07 | I30: Sander-Wietfeld-Ring 35 | J30: 33102 | K30: Paderborn | L30: 05251-5431533 | M30: 05251-280824 | O30: fredrik_rimrod@web.de | Q30: 4130286
A31: 30 | B31: Schmidt | C31: Hansjörg | D31: Dr.med.dent. | E31: Selbst. Zahnarzt | F31: Ute Sauer | G31: Herrn | H31: 1960-05-09 | I31: Kaunitzer Str. 10 | J31: 33161 | K31: Hövelhof | L31: 05294-560 | M31: 05257-3280 | N31: 0171-5081582 | O31: HJZahn@aol.com | Q31: 759946
A32: 31 | B32: Schneider | C32: Martin | D32: Prof. Dr. | E32: Uni-Prof. Uni Pb | F32: Sandra | G32: Herrn | H32: 1967-09-15 | I32: Schrieweshof 28 | J32: 33098 | K32: Paderborn | L32: 05254-9387693 | M32: 05251-602929 | N32: 01576-9135197 | O32: martin.schneider@upb.de
A33: 32 | B33: Schreckenberg | C33: Franz F. | D33: Dipl.-Btw. | E33: Geschäftsf. Schreckenberg GmbH & Co. KG | F33: Susanne | G33: Herrn | H33: 1962-07-08 | I33: Dörener Weg 111 | J33: 33100 | K33: Paderborn | L33: 05251-5439458 | N33: 0172-5214031 | O33: Franz.F@Schreckenberg.de | Q33: 765323
A34: 33 | B34: Stecher | C34: Martin | E34: Informatiker | F34: Bogusia | G34: Herrn | H34: 1967-12-05 | I34: Hünenweg 15 | J34: 33104 | K34: Paderborn | L34: 05254-922456 | M34: 05251-8717-525 | N34: 0170-7864700 | O34: Martin@Martin-Stecher.de | P34: martin_stecher@mcafee.com | Q34: 5433019 | R34: LC047
A35: 34 | B35: Tack | C35: Josef | E35: Hauptgeschäftsf. Kreishandwerkerschaft Pb | F35: Gerlinde Schnückel | G35: Herrn | H35: 1945-11-10 | I35: Brockensklee 16 | J35: 33154 | K35: Salzkotten | L35: 02955-748944 | N35: 0172-3918080 | O35: Josef.Tack@web.de | Q35: 765324
A36: 35 | B36: Thiele | C36: Reinhard | E36: Geschäftsf. RTS Blumen Export u. Import Salzkotten | F36: Gisela | G36: Herrn | H36: 1940-09-01 | I36: Am Stadtgraben 37 | J36: 33154 | K36: Salzkotten | L36: 05258-3331 | M36: 05258-8853-55 | N36: 0171-4300359 | O36: Thiele@rts-flowers.com | Q36: 765325
A37: 36 | B37: Thönissen* | C37: Wolfgang | D37: Prof. Dr. | E37: i.R. | F37: Ursula | G37: Herrn | H37: 1955-09-28 | I37: Lachenmoos 4 | J37: 79877 | K37: Friedenweiler | L37: 07651-8079918 | N37: 0170-3119420 | O37: Prof.Thoenissen@moehlerinstitut.de
A38: 37 | B38: Vollbach | C38: Lothar | E38: Inh. Hörgeräte Vollbach | F38: Marita | G38: Herrn | H38: 1954-01-12 | I38: Am Kalberdanz 14 | J38: 33102 | K38: Paderborn | L38: 05251-407780 | M38: 05251-27480 | N38: 0171-5310190 | O38: Lothar.Vollbach@t-online.de | Q38: 765327
A39: 38 | B39: von Westphalen | C39: Raban | D39: Prof. Dr. | E39: Politikwissenschaftler i. R. | F39: Gerlinde | G39: Graf | H39: 1945-12-17 | I39: Warburger Str. 29 a | J39: 33098 | K39: Paderborn | L39: 05251-7777040 | O39: von-westphalen@t-online.de | Q39: 5379628 | R39: LC046
A40: 39 | B40: Wiedeking | C40: Antonius | E40: Selbst. Steuerberater u. v.BP. | F40: Claudia | G40: Herrn | H40: 1952-01-13 | I40: Willi-Lucas-Weg 5 | J40: 33100 | K40: Paderborn | L40: 05251-509410 | O40: A.Wiedeking@paderborn.com | Q40: 765329
A41: 40 | B41: Wieneke | C41: Meinolf | E41: Kath. Pfarrer, Pfarrei St. Michael i.R. | G41: Herrn | H41: 1942-03-01 | I41: Husenerstr. 91 (App. 19) | J41: 33100 | K41: Paderborn | L41: 05251-4175562 | O41: Meinolf.Wieneke@paderborn.com | Q41: 765330
A44: =COUNTA(A2:A42) -> 40 | B44: Mitglieder
A46: Legende: * hinter dem Namen bedeutet passives Mitglied
A48: Zur Kontaktpflege:
B49: Henning | C49: Elisabeth | D49: Im Spiringsfelde 31 | E49: 33098 Paderborn | F49: 05251-760622
B50: Johannknecht | C50: Ingrid | D50: Frankfurter Weg 10 | E50: Paderborn | F50: 05251-7798027 | I50: mjohannknecht@aol.com
B51: Wellmann | C51: Hans u. Erika | D51: Bergheimer Weg 22 | E51: 33100 Paderborn | F51: 05251 65498 | I51: hans@familie-wellmann.de

Sheet Geburtstage
A1: Stammdaten | K1: Geburtstage im Jahresverlauf | O1: Mitglieder | S1: Altersstruktur ermitteln
A2: G = Gründungsmitglied | C2: Geb.Dat. | D2: Eintritt Carolus | E2: Ehefrau/(Partnerin) | G2: 2023 | K2: Name | L2: vollendetes Lj. | M2: runde ab 50 | O2: ="nach Alter Ende " &G2 -> nach Alter Ende 2023 | S2: =MIN(L4:L43) -> 42 | T2: =MAX(L4:L43) -> 88
S3: Alter | T3: Anzahl
B4: Ammenwerth, Richard | C4: 1945-01-26 | D4: 1983 | E4: Marlies | G4: 1954-01-12 | H4: =DAY(G4) -> 12 | I4: =MONTH(G4) -> 1 | J4: =YEAR(G4) -> 1954 | K4: Vollbach, Lothar | L4: =$G$2-YEAR($C$40) -> 69 | M4: =IF(L4<50,"",IF(VALUE(RIGHT(L4,1))=0,L4,IF(AND(VALUE(RIGHT(L4,1))=5,L4>40),L4,""))) ->  | O4: Hollmann | P4: =$G$2-YEAR($C$13) -> 42 | Q4: =C4 -> 16463 | S4: =S2 -> 42 | T4: =IF(COUNTIF($L$4:$L$43,S4)>0,COUNTIF($L$4:$L$43,S4),"") -> 2
B5: Auffenberg, Christian | C5: 1975-05-08 | D5: 2020 | E5: Susanne | G5: 1952-01-13 | H5: =DAY(G5) -> 13 | I5: =MONTH(G5) -> 1 | J5: =YEAR(G5) -> 1952 | K5: Wiedeking, Antonius | L5: =$G$2-YEAR($C$42) -> 71 | O5: Porcelli | P5: =$G$2-YEAR($C$29) -> 42 | Q5: 27522 | S5: =S4+1 -> 43 | T5: 1
B6: Bartels, Günther | C6: 1935-08-01 | D6: 1993 | E6: Sabi | G6: 1945-01-26 | H6: =DAY(G6) -> 26 | I6: =MONTH(G6) -> 1 | J6: =YEAR(G6) -> 1945 | K6: Ammenwerth, Richard | L6: =$G$2-YEAR($C$4) -> 78 | O6: Rimrod | P6: =$G$2-YEAR($C$32) -> 43 | Q6: 12997 | S6: 44
B7: Baur, Martin | C7: 1968-05-11 | D7: 2013 | E7: Kirsten Baur-Seack | G7: 1943-02-04 | H7: =DAY(G7) -> 4 | I7: =MONTH(G7) -> 2 | J7: =YEAR(G7) -> 1943 | K7: Martiny, Lutz | L7: =$G$2-YEAR($C$22) -> 80 | M7: 80 | O7: Auffenberg | P7: =$G$2-YEAR($C$5) -> 48 | Q7: 24969 | S7: 45
B8: Bee, Peter Wilhelm | C8: 1971-09-11 | D8: 2013 | E8: Stefanie | G8: 1942-03-01 | H8: =DAY(G8) -> 1 | I8: =MONTH(G8) -> 3 | J8: =YEAR(G8) -> 1942 | K8: Wieneke, Meinolf | L8: =$G$2-YEAR($C$43) -> 81 | O8: Bee | P8: =$G$2-YEAR($C$8) -> 52 | Q8: 26187 | S8: 46
B9: Brors, Dominik | C9: 1969-06-28 | D9: 2011 | E9: Maria Schäfers | G9: 12.03. | H9: 12 | I9: 3 | J9: 1971 | K9: Käter, Ansgar | L9: =$G$2-YEAR($C$17) -> 52 | O9: Käter | P9: =$G$2-YEAR($C$17) -> 52 | Q9: 25382 | S9: 47
B10: Deter, Gerhard | C10: 1950-04-20 | D10: 2020 | E10: Anne | G10: 1955-03-25 | H10: =DAY(G10) -> 25 | I10: =MONTH(G10) -> 3 | J10: =YEAR(G10) -> 1955 | K10: Krings, Wolfgang | L10: =$G$2-YEAR($C$19) -> 68 | O10: Reller | P10: =$G$2-YEAR($C$30) -> 52 | Q10: 18373 | S10: 48 | T10: 1
A11: G | B11: Feldmann, Ulrich | C11: 1936-06-25 | D11: 1981 | E11: Brigitte | G11: 1939-04-04 | H11: =DAY(G11) -> 4 | I11: =MONTH(G11) -> 4 | J11: =YEAR(G11) -> 1939 | K11: Friemuth, Klaus | L11: =$G$2-YEAR($C$12) -> 84 | O11: Brors | P11: =$G$2-YEAR($C$9) -> 54 | Q11: 13326 | S11: 49
A12: G | B12: Friemuth, Klaus | C12: 1939-04-04 | D12: 1981 | E12: Marlies | G12: 16.04. | H12: 16 | I12: 4 | J12: 1947 | K12: Jacoby, Franz | L12: =$G$2-YEAR($C$14) -> 76 | M12: =IF(L12<50,"",IF(VALUE(RIGHT(L12,1))=0,L12,IF(AND(VALUE(RIGHT(L12,1))=5,L12>40),L12,""))) ->  | O12: Baur | P12: =$G$2-YEAR($C$7) -> 55 | Q12: =#REF! ->  | S12: 50
B13: Hollmann, Benjamin | C13: 1981-06-30 | D13: 2017 | E13: Mona Niggemeyer-Hollmann | G13: 20.04. | H13: 20 | I13: 4 | J13: 1950 | K13: Deter, Gerhard | L13: =$G$2-YEAR($C$10) -> 73 | O13: Kühle | P13: =$G$2-YEAR($C$20) -> 56 | Q13: =C14 -> 17273 | S13: 51
A14: G | B14: Jacoby, Franz | C14: 1947-04-16 | D14: 1999 | E14: Doris | G14: 09.05 | H14: 9 | I14: 5 | J14: 1960 | K14: Schmidt, Hans-Jörg | L14: =$G$2-YEAR($C$33) -> 63 | O14: Schneider | P14: =$G$2-YEAR($C$34) -> 56 | Q14: =C15 -> 21149 | S14: 52 | T14: 3
B15: Joepen, Horst | C15: 1957-11-25 | D15: 1981 | E15: Ingrid | G15: 2021-05-08 | H15: 8 | I15: 5 | J15: 1975 | K15: Auffenberg, Christian | L15: =$G$2-YEAR($C$5) -> 48 | O15: Stecher | P15: =$G$2-YEAR($C$36) -> 56 | Q15: =#REF! ->  | S15: 53
B16: Keysers, Ludger | C16: 1960-05-29 | D16: 2006 | E16: Silvia | G16: 1968-05-11 | H16: =DAY(G16) -> 11 | I16: =MONTH(G16) -> 5 | J16: =YEAR(G16) -> 1968 | K16: Baur, Martin | L16: =$G$2-YEAR($C$7) -> 55 | M16: 55 | O16: Plonka | P16: =$G$2-YEAR($C$26) -> 57 | Q16: =#REF! ->  | S16: 54 | T16: 1
B17: Käter, Ansgar | C17: 1971-03-12 | D17: 2017 | E17: Rita Brink-Käter | G17: 1942-05-26 | H17: =DAY(G17) -> 26 | I17: =MONTH(G17) -> 5 | J17: =YEAR(G17) -> 1942 | K17: Lücke, Roland | L17: =$G$2-YEAR($C$21) -> 81 | O17: Plückebaum | P17: =$G$2-YEAR($C$27) -> 57 | Q17: =#REF! ->  | S17: 55 | T17: 1
A18: G | B18: Krause, Horst-Günter | C18: 1940-09-11 | D18: 1981 | E18: Dorit | G18: 1960-05-29 | H18: =DAY(G18) -> 29 | I18: =MONTH(G18) -> 5 | J18: =YEAR(G18) -> 1960 | K18: Keysers, Ludger | L18: =$G$2-YEAR($C$16) -> 63 | O18: Schreckenberg | P18: =$G$2-YEAR($C$35) -> 61 | Q18: =C19 -> 20173 | S18: 56 | T18: 3 | AB18: =IF(AA18<50,"",IF(VALUE(RIGHT(AA18,1))=0,AA18,IF(AND(VALUE(RIGHT(AA18,1))=5,AA18>40),AA18,""))) -> 
B19: Krings, Wolfgang | C19: 1955-03-25 | D19: 1997 | E19: Maria | G19: 1936-06-25 | H19: =DAY(G19) -> 25 | I19: =MONTH(G19) -> 6 | J19: =YEAR(G19) -> 1936 | K19: Feldmann, Ulrich | L19: =$G$2-YEAR($C$11) -> 87 | O19: Keysers | P19: =$G$2-YEAR($C$16) -> 63 | Q19: 24815 | S19: 57 | T19: 2
B20: Kühle, Martin | C20: 1967-12-09 | D20: 2019 | E20: Angela | G20: 1965-06-28 | H20: =DAY(G20) -> 28 | I20: =MONTH(G20) -> 6 | J20: 1969 | K20: Brors, Dominik | L20: =$G$2-YEAR($C$9) -> 54 | O20: Schmidt | P20: =$G$2-YEAR($C$33) -> 63 | Q20: 15487 | S20: 58
B21: Lücke, Roland | C21: 1942-05-26 | D21: 1981 | E21: Ingrid (Willaschek) | G21: 28.06. | H21: 28 | I21: 6 | J21: 1971 | K21: Reller, Ralf | L21: =$G$2-YEAR($C$30) -> 52 | O21: Preising | P21: =$G$2-YEAR($C$28) -> 65 | Q21: 15741 | S21: 59
B22: Martiny, Lutz | C22: 1943-02-04 | D22: 1994 | G22: 1981-06-30 | H22: =DAY(G22) -> 30 | I22: =MONTH(G22) -> 6 | J22: =YEAR(G22) -> 1981 | K22: Hollmann, Benjamin | L22: =$G$2-YEAR($C$13) -> 42 | O22: Joepen | P22: =$G$2-YEAR($C$15) -> 66 | Q22: 15610 | S22: 60
A23: G | B23: Nöcker, Dietrich | C23: 1942-09-26 | D23: 1981 | E23: Uta | G23: 1962-07-08 | H23: 8 | I23: 7 | J23: 1962 | K23: Schreckenberg, Franz | L23: =$G$2-YEAR($C$35) -> 61 | O23: Krings | P23: =$G$2-YEAR($C$19) -> 68 | Q23: =C24 -> 17494 | S23: =S22+1 -> 61 | T23: 1
B24: Oberheide, Henning | C24: 1947-11-23 | D24: 1981 | G24: 2023-07-12 | H24: 12 | I24: 7 | J24: 1981 | K24: Porcelli David | L24: =$G$2-YEAR($C$29) -> 42 | O24: Vollbach | P24: =$G$2-YEAR($C$40) -> 69 | Q24: =C26 -> 24303 | S24: 62
B25: Ortner, Gerhard E. | C25: 1940-09-18 | D25: 1985 | E25: Renate | G25: 1966-07-15 | H25: 15 | I25: 7 | J25: 1966 | K25: Plonka, Marek | L25: =$G$2-YEAR($C$26) -> 57 | O25: Wiedeking | P25: =$G$2-YEAR($C$42) -> 71 | Q25: =C28 -> 21467 | S25: 63 | T25: 2
B26: Plonka, Marek | C26: 1966-07-15 | D26: 2011 | E26: Ina | G26: 1935-08-01 | H26: 1 | I26: 8 | J26: 1935 | K26: Bartels, Günther | L26: =$G$2-YEAR($C$6) -> 88 | O26: Deter | P26: =$G$2-YEAR($C$10) -> 73 | Q26: =C30 -> 26112 | S26: 64
B27: Plückebaum, Andreas | C27: 1966-12-16 | D27: 2019 | E27: Ursula | G27: 1980-08-07 | H27: 7 | I27: 8 | J27: 1980 | K27: Rimrod, Fredrik | L27: =$G$2-YEAR($C$32) -> 43 | O27: Richard | P27: =$G$2-YEAR($C$31) -> 74 | Q27: 18163 | S27: 65 | T27: 1
B28: Preising, Andreas | C28: 1958-10-09 | D28: 2001 | E28: Gisela | G28: 1940-08-31 | H28: 31 | I28: 8 | J28: 1940 | K28: Thiele, Reinhard | L28: =$G$2-YEAR($C$38) -> 83 | O28: Jacoby | P28: =$G$2-YEAR($C$14) -> 76 | Q28: 29440 | S28: 66 | T28: 1
B29: Porcelli, David | C29: 1981-07-12 | D29: 2022 | G29: 1940-09-11 | H29: 11 | I29: 9 | J29: 1940 | K29: Krause, Horst-Günter | L29: =$G$2-YEAR($C$18) -> 83 | O29: Oberheide | P29: =$G$2-YEAR($C$24) -> 76 | Q29: 22045 | S29: 67
B30: Reller, Ralf | C30: 1971-06-28 | D30: 2019 | E30: Metten-Reller, Diana | G30: 1971-09-11 | H30: 11 | I30: 9 | J30: 1971 | K30: Bee, Peter Wilhelm | L30: =$G$2-YEAR($C$8) -> 52 | O30: Ammenwerth | P30: =$G$2-YEAR($C$4) -> 78 | Q30: =C35 -> 22835 | S30: =S29+1 -> 68 | T30: 2
B31: Richard, Hans Albert | C31: 1949-09-22 | D31: 1991 | E31: Sylvia | G31: 2023-09-15 | H31: 15 | I31: 9 | J31: 2023 | K31: Schneider, Martin | L31: =$G$2-YEAR($C$34) -> 56 | M31: =IF(L32<50,"",IF(VALUE(RIGHT(L32,1))=0,L32,IF(AND(VALUE(RIGHT(L32,1))=5,L32>40),L32,""))) ->  | O31: Tack | P31: =$G$2-YEAR($C$37) -> 78 | Q31: =C36 -> 24811 | S31: =S30+1 -> 69 | T31: 1
B32: Rimrod, Fredrik | C32: 1980-08-07 | D32: 2015 | E32: Franziska | G32: 1940-09-18 | H32: =DAY(G32) -> 18 | I32: =MONTH(G32) -> 9 | J32: =YEAR(G32) -> 1940 | K32: Ortner, Gerhard E. | L32: =$G$2-YEAR($C$25) -> 83 | O32: von Westphalen | P32: =$G$2-YEAR($C$41) -> 78 | Q32: =C37 -> 16751 | S32: =S31+1 -> 70
B33: Schmidt, Hans-Jörg | C33: 1960-05-09 | D33: 2002 | E33: Ute (Sauer) | G33: 1949-09-22 | H33: 22 | I33: 9 | J33: 1949 | K33: Richard, Hans Albert | L33: =$G$2-YEAR($C$31) -> 74 | M33: =IF(L33<50,"",IF(VALUE(RIGHT(L33,1))=0,L33,IF(AND(VALUE(RIGHT(L33,1))=5,L33>40),L33,""))) ->  | O33: Martiny | P33: =$G$2-YEAR($C$22) -> 80 | Q33: =C38 -> 14854 | S33: 71 | T33: 1
B34: Schneider, Martin | C34: 1967-09-15 | D34: 2023 | G34: 1942-09-26 | H34: 26 | I34: 9 | J34: 1942 | K34: Nöcker, Dietrich | L34: =$G$2-YEAR($C$23) -> 81 | M34: =IF(L34<50,"",IF(VALUE(RIGHT(L34,1))=0,L34,IF(AND(VALUE(RIGHT(L34,1))=5,L34>40),L34,""))) ->  | O34: Lücke | P34: =$G$2-YEAR($C$21) -> 81 | Q34: =#REF! ->  | S34: =S33+1 -> 72
B35: Schreckenberg, Franz | C35: 1962-07-08 | D35: 1997 | E35: Susanne | G35: 1955-09-28 | H35: 28 | I35: 9 | J35: 1955 | K35: Thönissen, Wolfgang | L35: =$G$2-YEAR($C$39) -> 68 | O35: Nöcker | P35: =$G$2-YEAR($C$23) -> 81 | Q35: =C40 -> 19736 | S35: =S34+1 -> 73 | T35: 1
A36: G | B36: Stecher, Martin | C36: 1967-12-05 | D36: 2020 | E36: Bogusia | G36: 1958-10-09 | H36: 9 | I36: 10 | J36: 1958 | K36: Preising, Andreas | L36: =$G$2-YEAR($C$28) -> 65 | M36: =IF(L36<50,"",IF(VALUE(RIGHT(L36,1))=0,L36,IF(AND(VALUE(RIGHT(L36,1))=5,L36>40),L36,""))) -> 65 | O36: Wieneke | P36: =$G$2-YEAR($C$43) -> 81 | S36: 74 | T36: =IF(COUNTIF($L$4:$L$43,S36)>0,COUNTIF($L$4:$L$43,S36),"") -> 1
B37: Tack, Josef | C37: 1945-11-10 | D37: 1981 | E37: Gerlinde | G37: 1945-11-10 | H37: 10 | I37: 11 | J37: 1945 | K37: Tack, Josef | L37: =$G$2-YEAR($C$37) -> 78 | O37: Krause | P37: =$G$2-YEAR($C$18) -> 83 | S37: =S36+1 -> 75
B38: Thiele, Reinhard | C38: 1940-08-31 | D38: 1986 | E38: Gisela | G38: 1947-11-23 | H38: 23 | I38: 11 | J38: 1947 | K38: Oberheide, Henning | L38: =$G$2-YEAR($C$24) -> 76 | O38: Ortner | P38: =$G$2-YEAR($C$25) -> 83 | S38: =S37+1 -> 76 | T38: 2
B39: Thönissen, Wolfgang | C39: 1955-09-28 | D39: 2001 | E39: Ursula | G39: 1957-11-25 | H39: 25 | I39: 11 | J39: 1957 | K39: Joepen, Horst | L39: =$G$2-YEAR($C$15) -> 66 | O39: Thiele | P39: =$G$2-YEAR($C$38) -> 83 | S39: =S38+1 -> 77
B40: Vollbach, Lothar | C40: 1954-01-12 | D40: 1994 | E40: Marita | G40: 05.12. | H40: 5 | I40: 12 | J40: 1967 | K40: Stecher, Martin | L40: =$G$2-YEAR($C$36) -> 56 | O40: Friemuth | P40: =$G$2-YEAR($C$12) -> 84 | S40: 78 | T40: 3
B41: von Westphalen, Raban | C41: 1945-12-17 | D41: 2020 | E41: Gerlinde | G41: 09.12. | H41: 9 | I41: 12 | J41: 1967 | K41: Kühle, Martin | L41: =$G$2-YEAR($C$20) -> 56 | O41: Feldmann | P41: =$G$2-YEAR($C$11) -> 87 | S41: =S40+1 -> 79
B42: Wiedeking, Antonius | C42: 1952-01-13 | D42: 1987 | E42: Claudia | G42: 16.12. | H42: 16 | I42: 12 | J42: 1966 | K42: Plückebaum, Andreas | L42: =$G$2-YEAR($C$27) -> 57 | O42: Bartels | P42: =$G$2-YEAR($C$6) -> 88 | S42: 80 | T42: 1
B43: Wieneke, Meinolf | C43: 1942-03-01 | D43: 1988 | G43: 17.12. | H43: 17 | I43: 12 | J43: 1945 | K43: von Westphalen, Raban | L43: =$G$2-YEAR($C$41) -> 78 | S43: 81 | T43: 3
S44: 82
A45: =COUNTIF(A4:A37,"G") -> 6 | C45: ="Das Durchschnittsalter unserer "&B45&" Mitglieder beträgt Ende "&G2&" " &FIXED(P45,1)&" Jahre" -> Das Durchschnittsalter unserer Mitglieder beträgt Ende 2023 67,0 Jahre | O45: Durschnitt | P45: =AVERAGE(P4:P42) -> 66.97435897 | S45: 83 | T45: 3
B46: =COUNTA(B4:B43) -> 40 | C46: Und das mittlere alter (Median) beträgt Ende 2022 | G46: =P46 -> 68 | H46: Jahre | O46: Median | P46: =MEDIAN(P4:P42) -> 68 | S46: 84 | T46: 1
S47: 85
S48: 86
S49: 87 | T49: 1
E50: Carolus-Altersstruktur Ende | G50: =G2 -> 2023 | S50: 88 | T50: 1
S51: 89
S52: 90
S53: 91
S54: 92
S55: 93
S56: 94
S57: 95
S58: 96
S59: 97
S60: 98
S61: 99
S62: 100
S63: 101
T65: =SUM(T4:T64) -> 40

Sheet Spenden ges.
A1: Spenden des Lions-Clubs Paderborn Carolus
A2: 1.95581 | D2: =SUM(D4:D5) -> 537934.7555 | E2: gesamt
C4: davon bis 1995 | D4: =SUM(D13:D41) -> 75554.67556 | E4: Spenden über die Gesellschaft der Freunde Lions
D5: =SUM(D43:D266) -> 462380.08 | E5: Spenden des Fördervereins
D6: darin
D7: =SUMIF(E43:E234,E7,D43:D234) -> 99963.38496 | E7: Missionswerk der Franziskaner
A8: Spenden gemäß den Protokollen der Mitgliederversammlungen | F8: je Kalenderjahr gesamt
D9: 1.95581
C10: Betrag | D10: € | E10: Empfänger | G10: €
A11: Teilergebnisse | D11: =SUBTOTAL(9,D13:D191,E13:E191) -> 537934.7555
H12: Lionsjahr
A13: 1981-12-17 | B13: =YEAR(A13) -> 1981 | C13: 600 | D13: =C13/$A$2 -> 306.7782658 | E13: Kinderheim für Sozialweisen in Scherfede | F13: 1981 | G13: =SUMIF($B$13:$B$129,F13,$D$13:$D$129) -> 306.7782658
A14: 1982-06-01 | B14: 1982 | C14: 900 | D14: 460.1673987 | E14: Stadt Paderborn für bedürftige Bürger | F14: 1982 | G14: =SUMIF($B$13:$B$129,F14,$D$13:$D$129) -> 460.1673987
A15: 1983-01-12 | B15: 1983 | C15: 6000 | D15: 3067.782658 | E15: Deutsches Komitee Notärzte e.V. Köln | F15: 1983 | G15: =SUMIF($B$13:$B$129,F15,$D$13:$D$129) -> 3067.782658
A16: 1984-01-23 | B16: 1984 | C16: 6000 | D16: 3067.782658 | E16: Komitee Cap Anamur / Deutsche Notärzte e.V. Köln | F16: 1984 | G16: =SUMIF($B$13:$B$129,F16,$D$13:$D$129) -> 3067.782658
A17: 1985-06-28 | B17: 1985 | C17: 5000 | D17: 2556.485548 | E17: Verein zur Hilfe Geistigbehinderter e.V. Paderborn | F17: 1985 | G17: =SUMIF($B$13:$B$129,F17,$D$13:$D$129) -> 2556.485548
A18: 1986-04-09 | B18: 1986 | C18: 4000 | D18: 2045.188439 | E18: Deutsche Multiple Sklerose Gesellschaft e.V. Paderborn
A19: 1986-04-09 | B19: 1986 | C19: 4000 | D19: 2045.188439 | E19: Suchtkrankenhilfe Paderborn e.V.
A20: 1986-10-15 | B20: 1986 | C20: 2000 | D20: 1022.594219 | E20: Menschen für Menschen e.V. (K.-H. Böhm) | F20: 1986 | G20: =SUMIF($B$13:$B$129,F20,$D$13:$D$129) -> 5112.971096
A21: 1987-01-28 | B21: 1987 | C21: 10000 | D21: 5112.971096 | E21: Deutsches Afghanistan Komitee e.V. Bonn | F21: 1987 | G21: =SUMIF($B$13:$B$129,F21,$D$13:$D$129) -> 5112.971096
A22: 1988-02-22 | B22: 1988 | C22: 10000 | D22: 5112.971096 | E22: Deutsche Leukämie Forschungshilfe Aktion krebskranke Kinder
A23: 1988-10-06 | B23: 1988 | C23: 9000 | D23: 4601.673987 | E23: Afrikamissionare "Weisse Väter", Köln | F23: 1988 | G23: =SUMIF($B$13:$B$129,F23,$D$13:$D$129) -> 9714.645083
A24: 1989-04-25 | B24: 1989 | C24: 10000 | D24: 5112.971096 | E24: Kinder Aids-Hilfe e.V. Düsseldorf
A25: 1989-05-08 | B25: 1989 | C25: 9000 | D25: 4601.673987 | E25: Eselskarren für Mali
A26: 1989 | B26: 1989 | C26: 1975.58 | D26: 1010.108344 | E26: Medikamentenspende für Polen | F26: 1989 | G26: =SUMIF($B$13:$B$129,F26,$D$13:$D$129) -> 10724.75343
A27: 1990 | B27: =A27 -> 1990 | C27: 3996.6 | D27: 2043.450028 | E27: Aktion Kinderheim in Geltow/DDR
A28: 1990 | B28: 1990 | C28: 2000 | D28: 1022.594219 | E28: Kindernahrung für Rumänien
A29: 1990 | B29: 1990 | C29: 1734.4 | D29: 886.793707 | E29: Rumänienhilfe
A30: 1990 | B30: 1990 | C30: 960.01 | D30: 490.8503382 | E30: Aktion Kinderheim in Geltow/DDR
A31: 1990 | B31: 1990 | C31: 200 | D31: 102.2594219 | E31: Deutsche Liga zur Bekämpfung der Atemwegserkrankungen | F31: 1990 | G31: =SUMIF($B$13:$B$129,F31,$D$13:$D$129) -> 4545.947715
A32: 1991 | B32: 1991 | C32: 100 | D32: 51.12971096 | E32: Dr. Nöcker/UdSSR | F32: 1991 | G32: =SUMIF($B$13:$B$129,F32,$D$13:$D$129) -> 51.12971096
A33: 1992 | B33: 1992 | C33: 500 | D33: 255.6485548 | E33: Tag der Psychiatrie
A34: 1992 | B34: 1992 | C34: 1000 | D34: 511.2971096 | E34: Sight First | F34: 1992 | G34: =SUMIF($B$13:$B$129,F34,$D$13:$D$129) -> 766.9456645
A35: 1993 | B35: 1993 | C35: 22344 | D35: 11424.42262 | E35: Inkubator Rumänien (Rechnung Drägerwerke)
A36: 1993 | B36: 1993 | C36: 6000 | D36: 3067.782658 | E36: Komitee "Ärzte Dritte Welt"
A37: 1993-02-26 | B37: =YEAR(A37) -> 1993 | C37: 960 | D37: 490.8452253 | E37: Sight First | F37: 1993 | G37: =SUMIF($B$13:$B$129,F37,$D$13:$D$129) -> 14983.0505
A38: 1994-03-14 | B38: =YEAR(A38) -> 1994 | C38: 8500 | D38: 4346.025432 | E38: Sight First
A39: 1994-09-13 | B39: =YEAR(A39) -> 1994 | C39: 1000 | D39: 511.2971096 | E39: St. Johannis-Stift Paderborn
A40: 1994-11-11 | B40: =YEAR(A40) -> 1994 | C40: 10000 | D40: 5112.971096 | E40: Sight First | F40: 1994 | G40: =SUMIF($B$13:$B$129,F40,$D$13:$D$129) -> 9970.293638
A41: 1995 | B41: 1995 | C41: 10000 | D41: 5112.971096 | E41: Sight First | F41: 1995 | G41: =SUMIF($B$13:$B$129,F41,$D$13:$D$129) -> 5112.971096
A43: 1996-04-16 | B43: =YEAR(A43) -> 1996 | C43: 1000 | D43: =C43/$D$9 -> 511.2971096 | E43: Johannisstift Paderborn | F43: 1996 | G43: =SUMIF($B$13:$B$129,F43,$D$13:$D$129) -> 10737.2393
B44: 1996 | C44: 20000 | D44: 10225.94219 | E44: Aktion Sight First
A45: 1997-05-13 | B45: =YEAR(A45) -> 1997 | C45: 140 | D45: 71.58159535 | E45: Sonderkonto Jugend
B46: 1997 | C46: 3000 | D46: 1533.891329 | E46: AWO Kinderzentrum Jugend | F46: 1997 | G46: =SUMIF($B$13:$B$129,F46,$D$13:$D$129) -> 1605.472924
A47: 1998-04-21 | B47: =YEAR(A47) -> 1998 | C47: 20000 | D47: 10225.94219 | E47: Wohnen für Behinderte
A48: 1998-10-06 | B48: =YEAR(A48) -> 1998 | C48: 27000 | D48: 13805.02196 | E48: Wohnen für Behinderte
B49: 1998 | C49: 1000 | D49: 511.2971096 | E49: Flutkatastrophe Oder
B50: 1998 | C50: 22653 | D50: 11582.41342 | E50: Kinderblindenheim Breslau | F50: 1998 | G50: =SUMIF($B$13:$B$129,F50,$D$13:$D$129) -> 36124.67469
A51: 1999-11-09 | B51: =YEAR(A51) -> 1999 | C51: 13500 | D51: 6902.51098 | E51: Wohnen für Behinderte
B52: 1999 | C52: 30000 | D52: 15338.91329 | E52: Missionswerk der Franziskaner
E53: (Schulbau in Brasilien) | F53: 1999 | G53: =SUMIF($B$13:$B$129,F53,$D$13:$D$129) -> 22241.42427
A54: 2000-10-10 | B54: =YEAR(A54) -> 2000 | C54: 1000 | D54: =C54/$D$9 -> 511.2971096 | E54: Erdbebenhilfe Türkei
B55: 2000 | C55: 27100 | D55: =C55/$D$9 -> 13856.15167 | E55: Missionswerk der Franziskaner
E56: (Schulbau in Brasilien) | F56: 2000 | G56: =SUMIF($B$13:$B$129,F56,$D$13:$D$129) -> 14367.44878
A57: 2001-11-13 | B57: =YEAR(A57) -> 2001 | E57: kein Spendenabfluß durch Verzögerungen
E58: bei Antrag für District-Zuschuß | F58: 2001 | G58: =SUMIF($B$13:$B$129,F58,$D$13:$D$129) -> 0
A59: 2002-11-05 | B59: =YEAR(A59) -> 2002 | C59: =D59*D$9 -> 13999.68798 | D59: 7158 | E59: Missionswerk der Franziskaner
B60: 2002 | C60: 7705.8914 | D60: 3940 | E60: Friedensdorf Oberhausen | F60: 2002 | G60: =SUMIF($B$13:$B$129,F60,$D$13:$D$129) -> 11098
A61: 2003-10-14 | B61: =YEAR(A61) -> 2003 | C61: 16840.14996 | D61: 8610.32 | E61: Missionswerk der Franziskaner
B62: 2003 | C62: 10756.955 | D62: 5500 | E62: Missionswerk der Franziskaner
B63: 2003 | C63: 19558.1 | D63: 10000 | E63: Lions Hilfswerk Meißen | F63: 2003 | G63: =SUMIF($B$13:$B$129,F63,$D$13:$D$129) -> 24110.32
A64: 2004-10-12 | B64: =YEAR(A64) -> 2004 | C64: 25425.53 | D64: 13000 | E64: Missionswerk der Franziskaner
E65: Brunnenbau (Wasser zu Wein) | F65: 2004 | G65: =SUMIF($B$13:$B$129,F65,$D$13:$D$129) -> 13000
A66: 2005-11-08 | B66: =YEAR(A66) -> 2005 | C66: =D66*D$9 -> 12712.765 | D66: 6500 | E66: Missionswerk der Franziskaner
E67: Brunnenbau (Wasser zu Wein) | F67: 2005 | G67: =SUMIF($B$13:$B$129,F67,$D$13:$D$129) -> 6500
A68: 2006-12-11 | B68: 2006 | D68: 7000 | E68: Missionswerk der Franziskaner | F68: 2006 | G68: =SUMIF($B$13:$B$129,F68,$D$13:$D$129) -> 7000
A69: 2007-07-12 | B69: 2007 | D69: 4500 | E69: Kirchenkreis PB
E70: Beschaffung von Digitalen Meldern
A71: 2007-07-12 | B71: 2007 | D71: 5000 | E71: Missionswerk der Franziskaner
E72: Ausbildungszentrum für Jugendliche in Ruanda
A73: 2007-07-12 | B73: 2007 | D73: 5000 | E73: Opportunity International Deutschland
E74: Kleinkredite für Kreditnehmer in Ghana
A75: 2007-07-12 | B75: 2007 | D75: 10500 | E75: Westfälische Kinderdörfer
E76: Berufsschule für Mädchen in Ghana | F76: 2007 | G76: =SUMIF($B$13:$B$129,F76,$D$13:$D$129) -> 25000
A77: 2008-05-28 | B77: 2008 | D77: 8000 | E77: Sterntaler e.V. Paderborn
E78: Einzelprojekte | F78: 2008 | G78: =SUMIF($B$13:$B$129,F78,$D$13:$D$129) -> 8288
A79: 2008-09-26 | B79: 2008 | D79: 288 | E79: Hilfswerk Dt. Lions Jahresspende
A80: 2009-02-20 | B80: 2009 | D80: 297 | E80: Hilfswerk Dt. Lions Jahresspende
A81: 2009-05-06 | B81: 2009 | D81: 4000 | E81: Internationaler Verband Westf. Kinderdörfer (Ghana)
A82: 2009-05-06 | B82: 2009 | D82: 5000 | E82: Sterntaler e.V. Paderborn
A83: 2009-05-07 | B83: 2009 | D83: 4000 | E83: Missionswerk der Franziskaner
A84: 2009-11-05 | B84: 2009 | D84: 1000 | E84: Hilfswerk der Dt. Lions, für Indonesien | F84: 2009 | G84: =SUMIF($B$13:$B$129,F84,$D$13:$D$129) -> 14297
A85: 2010-06-23 | B85: 2010 | D85: 1000 | E85: Förderverein der Musikschule Paderborn
A86: 2010-06-23 | B86: 2010 | D86: 2000 | E86: Int. Verband Westf. Kinderdörfer, Paderborn
A87: 2010-06-23 | B87: 2010 | D87: 4000 | E87: TURA Elsen Abtl Behindertensport
A88: 2010-06-23 | B88: 2010 | D88: 4000 | E88: Avicres Brasilienhilfe e. V. Paderborn
A89: 2010-06-23 | B89: 2010 | D89: 2000 | E89: DKMS Deutsche Knochenmarkspender Datei, Tübingen
A90: 2010-09-08 | B90: 2010 | D90: 1000 | E90: Hilfswerk Dt. Lions Pakistan-Fluthilfe | F90: 2010 | G90: =SUMIF($B$13:$B$129,F90,$D$13:$D$129) -> 14000
A91: 2011-07-20 | B91: =YEAR(A91) -> 2011 | D91: 3000 | E91: Sterntaler e.V. Paderborn
A92: 2011-07-20 | B92: =YEAR(A92) -> 2011 | D92: 4000 | E92: Missionswerk der Franziskaner | F92: 2011 | G92: =SUMIF($B$13:$B$129,F92,$D$13:$D$129) -> 7000
A93: 2012-04-27 | B93: =IF(YEAR(A93)>1900,YEAR(A93),"") -> 2012 | D93: 2000 | E93: Ambulanter Kinderhospizdienst Paderborn
A94: 2012-04-27 | B94: =IF(YEAR(A94)>1900,YEAR(A94),"") -> 2012 | D94: 2000 | E94: Christopherus Stiftung Lepra Krankenhaus
A95: 2012-04-27 | B95: =IF(YEAR(A95)>1900,YEAR(A95),"") -> 2012 | D95: 6000 | E95: Missionswerk der Franziskaner
E96: Hungerhilfe Afrika
A97: 2012-04-27 | B97: =IF(YEAR(A97)>1900,YEAR(A97),"") -> 2012 | D97: 5000 | E97: Int. Verband Westf. Kinderdörfer, Paderborn Hornhauttransplantation der 9jährigen Naomi; davon 2.000€ Districtzuschuß
A98: 2012-07-01 | B98: =IF(YEAR(A98)>1900,YEAR(A98),"") -> 2012 | D98: 3000 | E98: Sterntaler e.V. Paderborn | H98: aus Jahr 2011/12
B99: 2012 | D99: 4000 | E99: Missionswerk der Franziskaner | H99: aus Jahr 2011/12
B100: 2012 | D100: 3000 | E100: Hospiz "Mutter der Barmherzigkeit" | H100: aus Jahr 2011/12
A101: 2012-08-01 | B101: =IF(YEAR(A101)>1900,YEAR(A101),"") -> 2012 | D101: 315 | E101: Hilfswerk Dt. Lions Jahresspende
A102: 2012-11-01 | B102: 2012 | D102: 8000 | E102: Lichtblicke für Kinder in Afrika im RTL Spendenmarathon | F102: 2012 | G102: =SUMIF($B$13:$B$129,F102,$D$13:$D$129) -> 33315
A103: 2013-04-14 | B103: 2013 | D103: 15200 | E103: Verein „Freunde Äthiopiens e.V.“ , davon Zuschuß District 4.200,-
A104: 2013-05-10 | B104: 2013 | D104: 2000 | E104: AWO Kinderzentrum Paderborn | H104: 2012/2013 | I104: =SUM(D101:D104) -> 25515
A105: 2013-07-19 | B105: 2013 | D105: 8700 | E105: Hilfswerk Dt. Lions Hochwasserhilfe | F105: 2013 | G105: =SUMIF($B$13:$B$129,F105,$D$13:$D$129) -> 26215
A106: 2013-08-01 | B106: 2013 | D106: 315 | E106: Hilfswerk der Deutschen Lions
B107: 2014 | D107: 100 | E107: Lionsquest Weiterbildung
A108: 2014-04-16 | B108: =IF(YEAR(A108)>1900,YEAR(A108),"") -> 2014 | D108: 5000 | E108: Intern. Verband westfälischer Kinderdörfer, Paderborn
A109: 2014-06-30 | B109: =IF(YEAR(A109)>1900,YEAR(A109),"") -> 2014 | D109: 2500 | E109: Musiker ohne Grenzen
A110: 2014-06-30 | B110: =IF(YEAR(A110)>1900,YEAR(A110),"") -> 2014 | D110: 2500 | E110: Franziskanermission Dortmund | H110: 2013/2014 | I110: =SUM(D105:D110) -> 19115
A111: 2014-10-31 | B111: =IF(YEAR(A111)>1900,YEAR(A111),"") -> 2014 | D111: 324 | E111: Districtspende Verfügungsfonds
A112: 2014-11-18 | B112: =IF(YEAR(A112)>1900,YEAR(A112),"") -> 2014 | D112: 2000 | E112: Lions Spendenmarthon - Lichtblicke für Afrika | F112: 2014 | G112: =SUMIF($B$13:$B$129,F112,$D$13:$D$129) -> 12424
A114: 2015-02-18 | B114: =IF(YEAR(A114)>1900,YEAR(A114),"") -> 2015 | D114: 600 | E114: Patenschaft Klasse 2000 der Lutherschule Paderborn
A115: 2015-03-03 | B115: 2015 | D115: 10000 | E115: Freunde Äthiopiens Projekt Nefas Mewcha
A116: 2015-04-09 | B116: 2015 | D116: 9000 | E116: Missionare auf Zeit; Programm d. Kongregation d. Franziskanerinnen
A117: 2015-04-30 | B117: 2015 | D117: 2000 | E117: Aktion Zeitspende: Bürgerstiftung Paderborn
A118: 2015-08-18 | B118: 2015 | D118: 380 | E118: Ünterstützung Lions Radio Spot zur Alphabetisierungskampagne
A119: 2015-09-01 | B119: 2015 | D119: 600 | E119: Unterstützung Klasse 2000
A120: 2015-09-25 | B120: 2015 | D120: 333 | E120: Hilfswerk Dt. Lions | F120: 2015 | G120: =SUMIF($B$13:$B$129,F120,$D$13:$D$129) -> 22913 | H120: 2014/2015 | I120: =SUM(D111:D120) -> 25237
A122: 2016-01-22 | B122: =IF(YEAR(A122)>1900,YEAR(A122),"") -> 2016 | D122: 2000 | E122: Mama-Papa Home Sri Lanka
A123: 2016-04-06 | B123: 2016 | D123: 150 | E123: Mentor Lesehilfe Paderborn
A124: 2016-04-08 | B124: 2016 | D124: 10000 | E124: Paderborner Syrienhilfe
A125: 2016-05-06 | B125: 2016 | D125: 150 | E125: Mentor Lesehilfe Paderborn
A126: 2016-05-10 | B126: 2016 | D126: 4000 | E126: Mama-Papa Home Sri Lanka | H126: 2015/2016 | I126: =SUM(D118:D127) -> 17763
A127: 2016-06-06 | B127: 2016 | D127: 150 | E127: Mentor Lesehilfe Paderborn
A129: 2016-07-06 | B129: =IF(YEAR(A129)>1900,YEAR(A129),"") -> 2016 | D129: 150 | E129: Mentor Lesehilfe Paderborn | H129: Übereinstimmung mit Franz Schreckenberg
A130: 2016-07-14 | B130: 2016 | D130: 5000 | E130: Stiftung Lebenslauf
A131: 2016-07-21 | B131: 2016 | D131: 900 | E131: Sonderpflege e.V.
A132: 2016-08-08 | B132: 2016 | D132: 150 | E132: Mentor Lesehilfe Paderborn
A133: 2016-08-15 | B133: 2016 | D133: 380 | E133: Radiospot Alphabetisierung
A134: 2016-08-23 | B134: 2016 | D134: 1000 | E134: Verein Pallium
A135: 2016-09-06 | B135: 2016 | D135: 150 | E135: Mentor Lesehilfe Paderborn
A136: 2016-09-27 | B136: 2016 | D136: 600 | E136: Klasse 2000
A137: 2016-09-30 | B137: 2016 | D137: 324 | E137: Hilfswerk Dt. Lions
A138: 2016-10-06 | B138: 2016 | D138: 150 | E138: Mentor Lesehilfe Paderborn
A139: 2016-11-02 | B139: 2016 | D139: 6000 | E139: Mama Papa Home Sri Lanka
A140: 2016-11-07 | B140: 2016 | D140: 150 | E140: Mentor Lesehilfe Paderborn
A141: 2016-12-06 | B141: 2016 | D141: 150 | E141: Mentor Lesehilfe Paderborn | F141: 2016 | G141: =SUMIF($B$13:$B$1156,F141,$D$13:$D$141) -> 31554
A143: 2017-01-06 | B143: 2017 | D143: 150 | E143: Mentor Lesehilfe Paderborn
A144: 2017-02-06 | B144: 2017 | D144: 150 | E144: Mentor Lesehilfe Paderborn
A145: 2017-03-06 | B145: 2017 | D145: 150 | E145: Mentor Lesehilfe Paderborn
A146: 2017-03-30 | B146: 2017 | D146: 220 | E146: Klasse 2000
A147: 2017-04-06 | B147: 2017 | D147: 150 | E147: Mentor Lesehilfe Paderborn
A148: 2017-05-08 | B148: 2017 | D148: 7200 | E148: Welthungerhilfe Äthiopien
A149: 2017-05-08 | B149: 2017 | D149: 5300 | E149: Welthungerhilfe Äthiopien | H149: 2 Überweisungen?
A150: 2017-05-09 | B150: 2017 | D150: 2000 | E150: Odissa Charles Uganda | H150: von Franz Schreckenberg übernommen
A151: 2017-05-19 | B151: 2017 | D151: 500 | E151: Welthungerhilfe zweckgeb.
A152: 2017-06-04 | B152: 2017 | D152: 2500 | E152: Sozialdienst kath. Männer | H152: diese beiden Spenden hat FS dem Jahr 2017/2018 zugerechnet | M152: lt. Franz S.
A153: 2017-06-14 | B153: 2017 | D153: 2000 | E153: Wasser für Labgar | H153: 2016/2017 | I153: =SUM(D129:D153) -> 35424 | J153: ohne die beiden und dopelte Welthungerhilfe | M153: =I153-D152-D153-D149 -> 25624
A155: 2017-09-18 | B155: =IF(YEAR(A155)>1900,YEAR(A155),"") -> 2017 | D155: 324 | E155: Hilfswerk Dt. Lions
A156: 2017-10-17 | B156: 2017 | D156: 6000 | E156: Mama Papa Home Sri Lanka | M156: =I160+D152+D153 -> 4500
A157: 2017-12-21 | B157: 2017 | D157: 1350 | E157: Sammelspende Mentor Lesehilfe | L157: Welthungerhilfe | M157: 5300
A158: 2017-12-28 | B158: 2017 | D158: 820 | E158: Klasse 2000 | F158: 2017 | G158: =SUMIF($B$13:$B$1156,F158,$D$13:$D$141) -> 28814 | H158: Spenden 2. HJ 2017 | I158: =SUM(D155:D158) -> 8494 | L158: lt. Franz S. | M158: =SUM(M156:M157) -> 9800
A159: 2018-05-08 | B159: 2018 | D159: 5300 | E159: Deutsche Welthungerhilfe e.V.
A160: 2018-05-09 | B160: 2018 | D160: 3500 | E160: Mama Papa Home Sri Lanka (Renovierungsmaßnahmen)
A161: 2018-05-09 | B161: 2018 | D161: 1500 | E161: Mama Papa Home Sri Lanka (Physiotherapeut)
A162: 2018-06-04 | B162: 2018 | D162: 2500 | E162: SKM - Kath. Verein f. soz. Dienste
A163: 2018-06-14 | B163: 2018 | D163: 2000 | E163: Projekt Wasser für Labgar | F163: 2018 | G163: =SUMIF($B$13:$B$1156,F163,$D$13:$D$141) -> 15353 | H163: Spenden 1. HJ 2018 | I163: =SUM(D159:D163) -> 14800
H164: LJ 2017/2018 | I164: =SUM(D155:D163) -> 23294 | J164: =IF(I158+I163=I164,"ok","fehler") -> ok
A165: 2018-10-01 | B165: 2018 | D165: 333 | E165: Hilfswerk d. Deutschen Lions eV
A166: 2018-10-18 | B166: 2018 | D166: 220 | E166: Klasse 2000 | H166: Spenden 2. HJ 2018 | I166: =SUM(D165:D166) -> 553
A167: 2019-06-25 | B167: 2019 | D167: 4000 | E167: Mama Papa Home Sri Lanka
A168: 2019-06-26 | B168: 2019 | D168: 10000 | E168: Sterntaler Hile f. Kinder e.V. | H168: Spenden 1. HJ 2019 | I168: =SUM(D167:D168) -> 14000
H169: LJ 2018/2019 | I169: =SUM(D165:D168) -> 14553 | J169: =IF(I166+I168=I169,"ok","fehler") -> ok
A170: 2019-07-31 | B170: 2019 | D170: 8022.5 | E170: Wabe Kinderhilfe Äthiopien (Bauprojekt Hygienemanagement)
A171: 2019-10-16 | B171: 2019 | D171: 500 | E171: Stiftung Deutsche Krebshilfe | H171: Spende kam vom Lions-Club direkt; nicht vom Förderverein!
A172: 2019-11-22 | B172: 2019 | D172: 1000 | E172: Aktion Benni u. Co. e.V. | F172: 2019 | G172: =SUMIF($B$13:$B$1156,F172,$D$13:$D$141) -> 23522.5 | H172: Spenden 2. HJ 2019 | I172: =SUM(D170:D172) -> 9522.5 | K172: vom Förderverein | L172: =I172-D$171 -> 9022.5
A173: 2020-03-31 | B173: 2020 | D173: 2000 | E173: Mama Papa Home Sri Lanka
A174: 2020-03-31 | B174: 2020 | D174: 10000 | E174: IVWK e.V.
A175: 2020-03-31 | B175: 2020 | D175: 2500 | E175: Odissa Charles e.V.
A176: 2020-04-02 | B176: 2020 | D176: 16652.5 | E176: Wabe Kinderhilfe Äthiopien | H176: Spenden 1. HJ 2020 | I176: =SUM(D173:D176) -> 31152.5
H177: LJ 2019/2020 | I177: =I172+I176 -> 40675 | J177: =IF(I172+I176=I177,"ok","fehler") -> ok | K177: vom Förderverein | L177: =I177-D$171 -> 40175
A178: 2020-10-05 | B178: =IF(YEAR(A178)>1900,YEAR(A178),"") -> 2020 | D178: 351 | E178: Stiftung der Deutschen Lions | F178: 2020 | G178: =SUMIF($B$13:$B$1156,F178,$D$13:$D$141) -> 31503.5 | H178: Spenden 2. HJ 2020 | I178: =SUM(D178) -> 351 | K178: vom Club direkt 500 an Stiftung Krebshilfe | L178: 500
A179: 2021-01-25 | B179: 2021 | D179: 5000 | E179: Missionsschwestern v. kostb. Blut | L179: 40675
A180: 2021-02-25 | B180: 2021 | D180: 5000 | E180: Kongr. D. Franziskanerinnen
A181: 2021-03-01 | B181: 2021 | D181: 10000 | E181: Verein kath. Altenhilfeeinr. PB e.V.
A182: 2021-06-25 | B182: 2021 | D182: 1027.5 | E182: Wabe Childrens Aid + Training | H182: Spenden 1. HJ 2021 | I182: =SUM(D179:D182) -> 21027.5
H183: LJ 2020/2021 | I183: =I178+I182 -> 21378.5 | J183: =IF(I178+I182=I183,"ok","fehler") -> ok
A184: 2021-10-29 | B184: 2021 | D184: 369 | E184: Stiftung der Deutschen Lions (SDL) | F184: 2021 | G184: =SUMIF($B$13:$B$1156,F184,$D$13:$D$141) -> 21396.5 | H184: Spenden 2. HJ 2021 | I184: =SUM(D184) -> 369
B191: =IF(YEAR(A191)>1900,YEAR(A191),"") -> 

Sheet Ämter
E1: Lionsjahr | G1: 23/24 | H1: 22/23 | I1: 21/22 | J1: 20/21 | K1: 19/20 | L1: ="18/19" -> 18/19 | M1: ="17/18" -> 17/18 | N1: ="16/17" -> 16/17 | O1: ="15/16" -> 15/16 | P1: ="14/15" -> 14/15 | Q1: ="13/14" -> 13/14 | R1: ="12/13" -> 12/13 | S1: ="11/12" -> 11/12 | T1: ="10/11" -> 10/11 | U1: ="09/10" -> 09/10 | V1: ="08/09" -> 08/09 | W1: ="07/08" -> 07/08 | X1: ="06/07" -> 06/07 | Y1: ="05/06" -> 05/06 | Z1: ="04/05" -> 04/05 | AA1: ="03/04" -> 03/04 | AB1: ="02/03" -> 02/03 | AC1: ="01/02" -> 01/02 | AD1: 00/01 | AE1: 99/00 | AF1: 98/99 | AG1: 97/98 | AH1: 96/97 | AI1: 95/96 | AJ1: 94/95 | AK1: 93/94 | AL1: 92/93 | AM1: 91/92 | AN1: 90/91 | AO1: 89/90 | AP1: 88/89 | AQ1: 87/88 | AR1: 86/87 | AS1: 85/86 | AT1: 84/85 | AU1: 83/84 | AV1: 82/83 | AW1: 81/82
B2: Name | C2: Geb.-Dat. | E2: Eintritt | F2: Anzahl Ämter | I2: ausgefallen | K2: ausgefallen | M2: Potsdam | O2: Karlsruhe | Q2: Norden | S2: Holland | U2: Rhein- gau | W2: Berlin | Y2: Lud- wigsb. | AA2: Dres- den | AC2: Mosel | AE2: Flan- dern | AG2: Celle | AI2: Elsaß | AK2: Wien | AM2: Qued- linb. | AO2: Aals- meer | AQ2: Mai- kam. | AS2: Fran- ken
B3: Ammenwerth, Richard | C3: 1945-01-26 | D3: P | E3: 1983 | F3: =COUNTA(J3:AW3) -> 6 | J3: P | O3: S | P3: S | Q3: S | AI3: P | AS3: A
B4: Auffenberg, Christian | C4: 1975-05-08 | E4: 2020 | F4: =COUNTA(J4:AW4) -> 0
B5: Bartels, Günther* | C5: 1935-08-01 | D5: P | E5: 1993 | F5: 2 | Z5: P | AD5: ZCH
B6: Baur, Martin | C6: 1968-05-11 | E6: 2013 | F6: 4 | L6: A | M6: A | N6: A | O6: A
B7: Bee, Peter Wilhelm | C7: 1971-09-11 | E7: 2013 | F7: 0
B8: Brors, Dominik | C8: 1965-06-28 | E8: 2011 | F8: =COUNTA(H8:AW8) -> 4 | H8: P | L8: C | M8: C | N8: C
B9: Deter, Gerhard | C9: 1950-04-20 | E9: 2020 | F9: 0
A10: G | B10: Feldmann, Ulrich* | C10: 1936-06-25 | D10: P | E10: 1981 | F10: 4 | T10: A | AF10: C | AL10: P | AV10: C
A11: G | B11: Friemuth, Klaus | C11: 1939-04-04 | D11: P | E11: 1981 | F11: 5 | AH11: C | AJ11: C | AN11: P | AR11: C | AW11: S
B12: Hollmann, Benjamin | C12: 1981-06-30 | E12: 2017 | F12: 0
A13: G | B13: Jacoby, Franz | C13: 1947-04-16 | D13: P | E13: 1981 | F13: 5 | W13: C | X13: C | AM13: P | AP13: S | AU13: C
B14: Joepen, Horst | C14: 1957-11-25 | D14: P | E14: 1999 | F14: 11 | J14: Sch | K14: Sch | L14: Sch | M14: Sch | N14: Sch | O14: Sch | P14: Sch | Q14: Sch | U14: P | AB14: A | AC14: A
B15: Käter, Ansgar | C15: 1971-03-12 | E15: 2018 | F15: 0
B16: Keysers, Ludger* | C16: 1960-05-29 | D16: P | E16: 2006 | F16: 5 | O16: C | P16: C | R16: P | V16: A | W16: A
A17: G | B17: Krause, Horst-Günter* | C17: 1940-09-11 | D17: P | E17: 1981 | F17: 11 | AE17: C | AG17: S | AH17: S | AO17: P | AQ17: S | AR17: S | AS17: SCH | AT17: SCH | AU17: SCH | AV17: SCH | AW17: Sch
B18: Krings, Wolfgang | C18: 1955-03-25 | D18: P | E18: 1997 | F18: =COUNTA(H18:AW18) -> 4 | I18: P | Q18: C | R18: C | Y18: P
B19: Kühle, Martin | C19: 1967-12-09 | D19: P | E19: 2019 | F19: 0 | G19: P
A20: G | B20: Lücke, Roland* | C20: 1942-05-26 | D20: P | E20: 1981 | F20: 5 | AD20: C | AL20: SCH | AM20: SCH | AN20: SCH | AU20: P
B21: Martiny, Lutz | C21: 1943-02-04 | D21: P | E21: 1994 | F21: 1 | S21: P
A22: G | B22: Nöcker, Dietrich | C22: 1942-09-26 | D22: P | E22: 1981 | F22: 9 | K22: P | R22: S | U22: C | AB22: C | AC22: S | AD22: S | AI22: C | AM22: A | AQ22: P
A23: G | B23: Oberheide, Henning | C23: 1947-11-23 | D23: P | E23: 1981 | F23: 4 | U23: A | AK23: P | AS23: C | AV23: S
B24: Ortner, Gerhard E. | C24: 1940-09-18 | D24: P | E24: 1985 | F24: 2 | AB24: P | AO24: A
B25: Plonka, Marek | C25: 1966-07-15 | E25: 2011 | F25: 3 | L25: S | M25: S | N25: S
B26: Plückebaum, Andreas* | C26: 1966-12-16 | E26: 2016 | F26: 0
B27: Porcelli, David | C27: 1981-07-12 | E27: 2022
B28: Preising, Andreas | C28: 1958-10-09 | D28: P | E28: 2001 | F28: 3 | P28: P | Z28: A | AA28: A
B29: Reller, Ralf | C29: 1971-06-28 | E29: 2019 | F29: =COUNTA(H29:AW29) -> 1 | G29: A | H29: A
B30: Richard, Hans Albert | C30: 1949-09-22 | D30: P | E30: 1991 | F30: 5 | L30: P | V30: S | AC30: P | AG30: C | AK30: C
B31: Rimrod, Fredrik | C31: 1980-08-07 | E31: 2015 | F31: =COUNTA(H31:AW31) -> 1 | H31: C
B32: Schmidt, Hans-Jörg | C32: 1960-05-09 | D32: P | E32: 2002 | F32: 5 | M32: P | P32: A | Q32: A | R32: A | S32: A
B33: Schneider. Martin | C33: 1967-09-15 | E33: 2023
B34: Schreckenberg, Franz | C34: 1962-07-08 | D34: P | E34: 1997 | F34: =COUNTA(H34:AW34) -> 9 | G34: S | H34: S | I34: S | J34: S | K34: S | V34: C | AA34: P | AD34: A | AE34: A | AF34: A
B35: Stecher, Martin | C35: 1967-12-05 | E35: 2020 | F35: =COUNTA(H35:AW35) -> 2 | G35: Sch | H35: Sch | I35: Sch
A36: G | B36: Tack, Josef | C36: 1945-11-10 | D36: P | E36: 1981 | F36: 3 | W36: P | AJ36: A | AU36: S
B37: Thiele, Reinhard | C37: 1940-08-31 | D37: P | E37: 1986 | F37: 3 | AE37: P | AO37: C | AP37: C
B38: Thönissen, Wolfgang* | C38: 1955-09-28 | D38: P | E38: 2001 | F38: =COUNTA(J38:AW38) -> 7 | T38: P | W38: S | X38: S | Y38: S | Z38: S | AA38: S | AB38: S
B39: Vollbach, Lothar | C39: 1954-01-12 | D39: P | E39: 1994 | F39: 8 | N39: P | S39: C | T39: C | AA39: C | AD39: P | AG39: A | AH39: A | AI39: A
B40: von Westphfalen, Raban | C40: 1945-12-17 | E40: 2020 | F40: 0
B41: Wiedeking, Antonius | C41: 1952-01-13 | D41: P | E41: 1987 | F41: 8 | V41: P | AE41: Sch | AF41: Sch | AG41: SCH | AH41: SCH | AI41: SCH | AK41: S | AL41: A
B42: Wieneke, Meinolf | C42: 1942-03-01 | E42: 1988 | F42: 2 | AK42: A | AN42: A
B43: =COUNTA(B3:B42)& " Mitglieder" -> 40 Mitglieder | E43: Ämter | F43: =SUM(F3:F42) -> 142 | X43: =COUNTA(X3:X42) -> 2 | Y43: 2 | Z43: 3 | AA43: 4 | AB43: 4 | AC43: 3 | AD43: 5 | AE43: 4 | AF43: 3 | AG43: 4 | AH43: 4 | AI43: 4 | AJ43: 2 | AK43: 4 | AL43: 3 | AM43: 3 | AN43: 3 | AO43: 3 | AP43: 2 | AQ43: 2 | AR43: 2 | AS43: 3 | AT43: 1 | AU43: 4 | AV43: 3 | AW43: 2
A44: =COUNTA(A3:A42)& " Gündungsmitglieder" -> 8 Gündungsmitglieder
A45: >Na | B45: me*> passive Mitgliedschaft
B46: Zugänge ab 1982 | E46: =SUM(L46:AV46) -> 24 | F46: =AVERAGE(G46:AV46) -> 0.6486486486 | L46: =COUNTIF($E$3:$E$42,2018) -> 1 | M46: =COUNTIF($E$3:$E$42,2017) -> 1 | N46: =COUNTIF($E$3:$E$42,2016) -> 1 | O46: =COUNTIF($E$3:$E$42,2015) -> 1 | P46: =COUNTIF($E$3:$E$42,2014) -> 0 | Q46: =COUNTIF($E$3:$E$42,2013) -> 2 | R46: =COUNTIF($E$3:$E$42,2012) -> 0 | S46: =COUNTIF($E$3:$E$42,2011) -> 2 | T46: =COUNTIF($E$3:$E$42,2010) -> 0 | U46: =COUNTIF($E$3:$E$42,2009) -> 0 | V46: =COUNTIF($E$3:$E$42,2008) -> 0 | W46: =COUNTIF($E$3:$E$42,2007) -> 0 | X46: =COUNTIF($E$3:$E$42,2006) -> 1 | Y46: =COUNTIF($E$3:$E$42,2005) -> 0 | Z46: =COUNTIF($E$3:$E$42,2004) -> 0 | AA46: =COUNTIF($E$3:$E$42,2003) -> 0 | AB46: =COUNTIF($E$3:$E$42,2002) -> 1 | AC46: =COUNTIF($E$3:$E$42,2001) -> 2 | AD46: =COUNTIF($E$3:$E$42,2000) -> 0 | AE46: =COUNTIF($E$3:$E$42,1999) -> 1 | AF46: =COUNTIF($E$3:$E$42,1998) -> 0 | AG46: =COUNTIF($E$3:$E$42,1997) -> 2 | AH46: =COUNTIF($E$3:$E$42,1996) -> 0 | AI46: =COUNTIF($E$3:$E$42,1995) -> 0 | AJ46: =COUNTIF($E$3:$E$42,1994) -> 2 | AK46: =COUNTIF($E$3:$E$42,1993) -> 1 | AL46: =COUNTIF($E$3:$E$42,1992) -> 0 | AM46: =COUNTIF($E$3:$E$42,1991) -> 1 | AN46: =COUNTIF($E$3:$E$42,1990) -> 0 | AO46: =COUNTIF($E$3:$E$42,1989) -> 0 | AP46: =COUNTIF($E$3:$E$42,1988) -> 1 | AQ46: =COUNTIF($E$3:$E$42,1987) -> 1 | AR46: =COUNTIF($E$3:$E$42,1986) -> 1 | AS46: =COUNTIF($E$3:$E$42,1985) -> 1 | AT46: =COUNTIF($E$3:$E$42,1984) -> 0 | AU46: =COUNTIF($E$3:$E$42,1983) -> 1 | AV46: =COUNTIF($E$3:$E$42,1982) -> 0 | AW46: =COUNTIF($E$3:$E$42,1981) -> 8
B47: noch nicht Präsident | D47: =COUNTBLANK(D3:D42) -> 16
B48: Frühere Mitglieder
B49: Daniel, Bernhard † | C49: 1928-06-15 | E49: 1981 | F49: =COUNTA(J49:AW49) -> 3 | AK49: RCH | AP49: P | AT49: C
B50: Dinger | F50: 2 | AR50: P | AT50: A
B51: Eicker, Peter | C51: 1944-11-23 | E51: 1986 | F51: 5 | AH51: P | AL51: S | AM51: S | AN51: C | AP51: A
B52: Gnisa, Jens | C52: 1963-05-19 | D52: P | E52: 2009 | F52: 3 | O52: P | S52: S | T52: S
B53: Hahn, Michael | C53: 1966-03-12 | D53: P | E53: 2001 | F53: 2 | U53: S | X53: P
B54: Heinrichsmeier, Clemens | C54: 1928-04-15 | E54: 1981 | F54: 3 | AN54: 2.VP | AS54: S | AT54: S
A55: G | B55: Henning, Hans † | C55: 1935-08-04 | D55: P | E55: 1981 | F55: 4 | AJ55: SCH | AK55: SCH | AS55: P | AW55: A
B56: Hohenstein, Klaus | E56: 1997 | F56: 0
B57: Hornmann, Klaus † | C57: 1938-01-10 | E57: 1981 | F57: 3 | AJ57: P | AQ57: C | AW57: C
B58: Huttrop-Hage, Kai | C58: 1972-12-10 | E58: 2006 | F58: 0
A59: G | B59: Johannknecht, Gerhard† | C59: 1931-10-07 | D59: P | E59: 1981 | F59: 1 | AT59: P
B60: Kinne | E60: 1989 | F60: 0
B61: Kloke | F61: 0
B62: Köhler | E62: 1981 | F62: 5 | AO62: SCH | AP62: SCH | AQ62: SCH | AR62: SCH | AW62: P
B63: Knickenberg, Manfred † | C63: 1939-06-21 | D63: P | E63: 1995 | F63: 5 | Q63: P | X63: A | Y63: A | AE63: S | AF63: S
B64: Kruse † 1.5.1990 | E64: 1981 | F64: 0
A65: G | B65: Kuhlenkamp, Dieter † | C65: 1930-11-08 | D65: P | E65: 1981 | F65: 10 | W65: Sch | X65: Sch | Y65: Sch | Z65: Sch | AA65: Sch | AB65: Sch | AC65: Sch | AD65: Sch | AJ65: S | AV65: P
A66: G | B66: Liemke, Hartwig † | C66: 1937-07-31 | D66: P | E66: 1981 | F66: 8 | AF66: P | AI66: S | AL66: C | AM66: C | AQ66: A | AR66: A | AU66: A | AV66: A
B67: Niggemeier | C67: 1951-07-30 | E67: 2001 | F67: 0
B68: Niestendietrich | E68: 1987 | F68: 0
B69: Nowak | E69: 1981 | F69: 0
B70: Schlewing | E70: 1981 | F70: 0
B71: Tödt | F71: 0
B72: Tietmeyer | E72: 1981 | F72: 0
B73: Niggemeier | C73: 1951-07-30 | E73: 2001 | F73: 0
B74: Hahn, Michael | C74: 1966-03-12 | D74: P | E74: 2001 | F74: 2 | U74: S | X74: P
B75: Huttrop-Hage, Kai | C75: 1972-12-10 | E75: 2006 | F75: 0
A76: G | B76: Henning, Hans † | C76: 1935-08-04 | D76: P | E76: 1981 | F76: 4 | AJ76: SCH | AK76: SCH | AS76: P | AW76: A
B81: Wellmann, Hans | C81: 1938-03-30 | D81: P | E81: 1987 | F81: =COUNTA(J81:AW81) -> 11 | R81: Sch | S81: Sch | T81: Sch | U81: Sch | V81: Sch | Y81: C | Z81: C | AG81: P | AL81: ZCH | AN81: S | AO81: S

Sheet Vorstand
B2: Vorstand für das Lionsjahr 2023/2024 | E2: Bankverbindungen | G2: Lions Club Paderborn-Carolus
G3: Bank für Kirche und Caritas (BKC)
B4: Präsident | C4: Martin Kühle | G4: DE12 4726 0307 0015 8502 00
B5: Past-Präsident | C5: Dr. Dominik Brors
B6: 1. Vizepräsident | C6: Dr. Martin Baur
B7: 2. Vizepräsident | C7: Frederik Rimrod | G7: Förderverein
B8: Sekretär | C8: Franz Schreckenberg | G8: Förderverein Lionsclub Paderborn-Carolus e.V.
B9: Schatzmeister | C9: Martin Stecher | G9: Bank für Kirche und Caritas (BKC)
B10: Clubmaster | C10: David Porcelli | G10: IBAN DE74472603070015900300
B11: Activitybeauftragter | C11: Ralf Reller
B12: Rechnungsprüfer | C12: Ansgar Käter
B13: Internetbeauftragter | C13: Dr. Lutz Martiny
B14: Leobeauftragter | C14: Dr. Hansjörg Schmidt
B15: Umweltbeauftragter | C15: Marek Plonka
B16: Mitgliedschaftsbeauftragter | C16: Christian Auffenberg

Sheet ehem. Vorstände
C2: Lionsjahr | D2: Präsident, Sekretär, Schatzmeister
C4: 1981/82 | D4: Köhler, S Friemuth, SCH Krause
C5: 1982/83 | D5: Kuhlenkamp, Oberheide, Krause
C6: 1983/84 | D6: Lücke, Tack, Krause
C7: 1984/85 | D7: Johannknecht, Heinrichsmeier, Krause
C8: 1985/86 | D8: Henning, Heinrichsmeier, Krause
C9: 1986/87 | D9: Dinger, Krause, Köhler
C10: 1987/88 | D10: Nöcker, Krause, Köhler
C11: 1988/89 | D11: Daniel, Jacoby, Köhler
C12: 1989/90 | D12: Krause, Wellmann, Köhler
C13: 1990/91 | D13: Friemuth, Wellmann, Lücke
C14: 1991/92 | D14: Jacoby, Eicker, Lücke
C15: 1992/93 | D15: Feldmann, Eicker, Lücke
C16: 1993/94 | D16: Oberheide, Wiedeking, Henning
C17: 1994/95 | D17: Hornmann, Kuhlenkamp, Henning
C18: 1995/96 | D18: Ammenwerth, Liemke, Wiedeking
C19: 1996/97 | D19: Eicker, Krause, Wiedeking
C20: 1997/98 | D20: Wellmann, Krause, Wiedeking
C21: 1998/99 | D21: Liemke, Knickenberg, Wiedeking
C22: 1999/2000 | D22: Thiele, Knickenberg, Wiedeking
C23: 2000/01 | D23: Vollbach, Nöcker, Kuhlenkamp
C24: 2001/02 | D24: Richard, Nöcker, Kuhlenkamp
C25: 2002/03 | D25: Ortner, Thönissen, Kuhlenkamp
C26: 2003/04 | D26: Schreckenberg, Thönissen, Kuhlenkamp
C27: 2004/05 | D27: Bartels, Thönissen, Kuhlenkamp
C28: 2005/06 | D28: Krings, Thönissen, Kuhlenkamp
C29: 2006/07 | D29: Hahn, Thönissen, Kuhlenkamp
C30: 2007/08 | D30: Tack, Thönissen, Kuhlenkamp
C31: 2008/09 | D31: Wiedeking, Richard, Wellmann
C32: 2009/10 | D32: Joepen, Hahn, Wellmann
C33: 2010/11 | D33: Thönissen, Gnisa, Wellmann
C34: 2011/12 | D34: Martiny, Gnisa, Wellmann
C35: 2012/13 | D35: Keysers, Nöcker, Wellmann
C36: 2013/14 | D36: Knickenberg, Ammenwerth, Joepen
C37: 2014/15 | D37: Preising, Ammenwerth, Joepen
C38: 2015/16 | D38: Gnisa, Ammenwerth, Joepen
C39: 2016/17 | D39: Vollbach, Plonka, Joepen
C40: 2017/18 | D40: Schmidt, Plonka, Joepen
C41: 2018/19 | D41: Richard, Plonka, Joepen
C42: 2019/20 | D42: Nöcker, Schreckenberg, Joepen
C43: 2020/21 | D43: Ammenwerth, Schreckenberg, Joepen
C44: 2021/22 | D44: Krings, Schreckenber, Stecher
C45: 2022/23 | D45: Brors, Schreckenberg, Stecher
C46: 2023/24 | D46: Kühle, Schreckenberg, Stecher

Sheet off. Ve.
B1: Zusammenfassung
C2: =COUNTA(C5:C501) -> 495 | D2: offizielleVeranstaltungen insgesamt | F2: davon mit Damen | G2: =COUNTA(G5:G501) -> 296 | H2: =G2/C2 -> 0.597979798 | I2: jede 2. Veranstaltung mit Damen
A3: Filterergebnisse | C3: =SUBTOTAL(103,C5:C501) -> 495 | D3: =SUBTOTAL(103,D5:D501) -> 473 | E3: =SUBTOTAL(103,E5:E501) -> 282 | G3: =SUBTOTAL(103,G5:G501) -> 296
B4: Datum | C4: Jahr | D4: Art | E4: Referent, Initiator | F4: Thema | G4: mit Damen | H4: gemeinsam mit | I4: Gästebuch Bild Nr.
A5: LC PB | B5: 1980-08-19 | C5: =YEAR(B5) -> 1980 | D5: Gründungskreis | E5: Initiative des LC Paderborn | F5: Schreiben des LC Paderborn an Governor wg. Neugründung
B6: 1981-02-23 | C6: 1981 | D6: Informationen über Lions im Schweizer Haus | F6: 11 spätere Mitglieder werden vom Vorstand des LC PB über Sinn, Ziele und Zweck der Lionsbewegung informiert
A7: P Köhler, S Friemuth, SCH Krause | B7: 1981-03-19 | C7: 1981 | D7: Gründungskreis | E7: Treffen in der Sparkasse | F7: weitere Mitglieder vorschlagen, damit die Mindestzahl von 20 erreicht wird
B8: 1981-04-29 | C8: 1981 | D8: Gründungskreis | F8: Testessen im Arosa, Vorschläge für neue Mitglieder
B9: 1981-06-03 | C9: 1981 | D9: Gründungskreis | F9: Test Fischteiche, Vorschläge für neue Mitglieder
B10: 1981-06-24 | C10: 1981 | D10: Gründungskreis | F10: Test Kurhaus Lippspringe Vorschläge für neue Mitglieder
B11: 1981-07-08 | C11: 1981 | D11: Gründungskreis | F11: Kaiserpfalz
B12: 1981-07-22 | C12: 1981 | D12: Gründungskreis | F12: Haus Hentze, Marienloh
B13: 1981-09-09 | C13: 1981 | D13: interne Gründungsversammlung | F13: Vorstandswahlen
B14: 1981-09-09 | C14: 1981 | D14: Vortrag | E14: Kruse | F14: Islamische Mystiker in Südindien
B15: 1981-10-14 | C15: 1981 | D15: Besichtigung | E15: Hornmann | F15: Paderborner Brauerei | G15: x | H15: LC PB
B16: 1981-10-28 | C16: 1981 | D16: offizielle Gründungsversammlung | E16: DG Seppeler
B17: 1981-12-09 | C17: 1981 | D17: Vortrag | E17: Heinrichsmeier | F17: Gedanken zum neuen Ehe- und Familienrecht
B18: 1981-12-12 | C18: 1981 | D18: Weihnachtsfeier | F18: Vorweihnachtliches Konzert Abdinghofkirche als Activity-Veranstaltung | G18: x
B19: 1981-12-19 | C19: 1981 | D19: Weihnachtsbaumschlagen | E19: Tietmeyer | F19: Weihnachtsbaumschlagen anschl. Germanenhof Sandebeck | G19: x | H19: mit Kindern
B20: 1982-01-13 | C20: 1982 | D20: Vortrag | E20: Nöcker | F20: Die Strahlengefährdung des Menschen
B21: 1982-02-10 | C21: 1982 | D21: Vortrag | E21: Daniel | F21: Architektur als Aktion und Reaktion
B22: 1982-03-10 | C22: 1982 | D22: Vortrag | E22: Feldmann | F22: Probleme der inneren Sicherheit aus der Sicht der Strafverfolgung
B23: 1982-04-14 | C23: 1982 | D23: MV
B24: 1982-05-12 | C24: 1982 | D24: Vortrag | E24: Tietmeier | F24: Warum die Bäume nicht in den Himmel wachsen
B25: 1982-06-05 | C25: 1982 | D25: Charterfeier | G25: x | I25: 6
A26: Kuhlenkamp, Oberheide, Krause | B26: 1982-08-08 | C26: 1982 | D26: Vortrag | E26: Nowak | F26: Die Revolution der Mikroelektronik
B27: 1982-09-24 | C27: 1982 | D27: Besichtigung | F27: KKW Grohnde | G27: x
B28: 1982-10-06 | C28: 1982 | D28: MV | I28: 12
B29: 1982-11-08 | C29: 1982 | D29: Vortrag | E29: Höhler | F29: im "Paderdörfchen" Konflikte der Generationen | G29: x | H29: LC PB als Ausrichter
B30: 1982-11-24 | C30: 1982 | D30: Vortrag | E30: Kruse | F30: Atomenergierecht
B31: 1982-12-08 | C31: 1982 | D31: Vortrag | E31: L Prof. Carstensen | F31: Die Deutsche Sprache in Ost und West
B32: 1983-01-12 | C32: 1983 | D32: Activity Abschluß | F32: Übergabe des Erlöses der Activity 82 an Deutsches Komitee Notärzte | G32: x
B33: 1983-02-09 | C33: 1983 | D33: Vortrag | E33: Dinger | F33: Wirtschaftliche Stärken und Schwächen des Paderborner Raumes
B34: 1983-03-09 | C34: 1983 | D34: Besichtigung | F34: Bertelsmann-Verlag | G34: x
B35: 1983-04-13 | C35: 1983 | D35: MV | E35: Köhler | F35: Die Stellung der Sparkasse in der dt. Kreditwirtschaft | I35: 18
B36: 1983-05-11 | C36: 1983 | D36: Besichtigung | F36: Porzellanmanufaktur Fürstenberg anschl. Orgelkonzert in Marienmünster | G36: x | I36: 19
A37: Lücke, Tack, Krause | B37: 1983-06-08 | C37: 1983 | D37: Vortrag | E37: Oberheide | F37: Aktuelle Probleme des Wettbewerbsrechts
B38: 1983-09-14 | C38: 1983 | D38: Vortrag | E38: Schlewing | F38: Thema nicht festgehalten
B39: 1983-10-19 | C39: 1983 | D39: MV | I39: 22
B40: 1983-11-09 | C40: 1983 | D40: Besichtigung | E40: Tack | F40: Besichtigung des Handwerksbildungszentrums Paderborn | G40: x
B41: 1983-12-14 | C41: 1983 | D41: Vortrag | E41: L Otto Buchinger Pyrmont | F41: Die Würde des menschen - Meditationen im Grenzgebiet zwischen Medizin Philosophie, Jurisprudenz und Politik | H41: Governor
B42: 1984-01-11 | C42: 1984 | D42: Activity Abschluß | E42: Liemke | F42: Lobster Essen | G42: x
B43: 1984-02-08 | C43: 1984 | D43: Besichtigung | E43: Lücke | F43: Besichtigung einer Forellenzucht-Anlage in Lichtenau | G43: x
B44: 1984-03-09 | C44: 1984 | D44: Besichtigung | E44: Krause | F44: Besichtigung des Institus für Tieflagerung Schachtanlage Asse | G44: x | H44: LC PB
B45: 1984-03-14 | C45: 1984 | D45: Vortrag | E45: Krause
B46: 1984-04-11 | C46: 1984 | D46: MV | I46: 28
B47: 1984-05-09 | C47: 1984 | D47: Vortrag | E47: Jacoby | F47: Sticken als Freizeitgestaltung
A48: Johannknecht, Heinrichsmeier, Krause | B48: 1984-05-16 | C48: 1984 | D48: Herrenabend | E48: Hornmann | F48: im Schalander der Brauerei | H48: LC PB
B49: 1984-06-06 | C49: 1984 | D49: Vortrag | E49: Friemuth | F49: Situation in der Bauwirtschaft
B50: 1984-09-12 | C50: 1984 | D50: Vortrag | E50: L Ochsenfarth | F50: Denkmalpfelge und Kunstfertigkeiten von Restauratoren | G50: x
B51: 1984-10-17 | C51: 1984 | D51: Besichtigung | E51: Johannknecht | F51: Besichtigung des Hauses Außel in Wiedenbrück-Batenhorst | G51: x
B52: 1984-11-14 | C52: 1984 | D52: MV | I52: 35
B53: 1984-12-18 | C53: 1984 | D53: Weihnachtsfeier | F53: Weihnachtsoratorium im Dom und Vorweihnachtliche Feier im Adam- und Eva-Haus | G53: x
B54: 1985-01-09 | C54: 1985 | D54: Vortrag | E54: Prof. Buttler | F54: Die Universität -GH-Paderborn in der Region
B55: 1985-02-13 | C55: 1985 | D55: Vortrag | E55: Dr. Rolf Berger | F55: Moderne Technologie-Ausbildung im Dienste des industriellen Strukturwandels
B56: 1985-03-13 | C56: 1985 | D56: MV | E56: Heinrichsmeier | F56: Kirchliche Hochschulen in Paderborn | I56: 39
B57: 1985-05-08 | C57: 1985 | D57: Vortrag | E57: Köhler | F57: Bankgeheimnis und Bankauskunft
B58: 1985-06-06 | C58: 1985 | D58: Fahrt | F58: Frankenland Bamberg, Staffelstein | G58: x
A59: Henning, Heinrichsmeier, Krause | B59: 1985-07-24 | C59: 1985 | D59: Liboritreffen | F59: In der Sparkasse
B60: 1985-08-14 | C60: 1985 | D60: Vortrag | E60: W. Rometsch | F60: Jugend und Drogen | G60: x
B61: 1985-08-28 | C61: 1985 | D61: Besichtigung | E61: Dinger | F61: Ausstellung Hildesheim: Nofret die Schöne - Die Frau im Alten Ägypten | G61: x
B62: 1985-09-11 | C62: 1985 | D62: Vortrag | E62: Prof. Dr. Martin Schwochau | F62: Chancen und Risiken der modernen Gentechnologie | G62: x
B63: 1985-10-23 | C63: 1985 | D63: MV | I63: 46
B64: 1985-11-20 | C64: 1985 | D64: Vortrag | E64: Prof. Josef Wallraff | F64: Aktuelle Tendenzen in der Wirtschaftspolitik | H64: mit LC PB
B65: 1985-11-27 | C65: 1985 | D65: Besichtigung | E65: Jacoby | F65: Besichtigung der Firma TAP Tapisserie-Service in Brakel und des Orgelmuseums in Borgentreich | G65: x
B66: 1985-12-11 | C66: 1985 | D66: Kochen bei PESAG | F66: Tisch-Lion deck Dich | G66: x
B67: 1985-12-15 | C67: 1985 | D67: Weihnachtsbaumschlagen | F67: Forstgut Heimat, Bad Lippspringe | G67: x
B68: 1986-01-08 | C68: 1986 | D68: Vortrag | E68: Ammenwerth | F68: Sinn und Unsinn des Leistungssports
B69: 1986-02-12 | C69: =YEAR(B69) -> 1986 | D69: Besichtigung | E69: Kuhlenkamp | F69: EDV-Einsatz in der Anwaltskanzlei
B70: 1986-02-26 | C70: 1986 | D70: Besichtigung | E70: Liemke | F70: Vorführung einer flexiblen Fertigungsstraße für Gußflansche | G70: x
B71: 1986-03-12 | C71: 1986 | D71: Vortrag | E71: Ortner | F71: Dienstleistungen für das Bildungs- und Beschäftigungssystem
B72: 1986-04-09 | C72: 1986 | D72: MV | F72: Spendenübergabe an den DMSG Landesverband Beratungsstelle für Suchtkranke und Drogenabhängige für den Kreis Paderborn | I72: 53
B73: 1986-05-14 | C73: 1986 | D73: Vortrag | E73: H. Tacke, Bielefeld | F73: Markt- und Meinungsforschung im Wandel der Zeit
B74: 1986-05-28 | C74: 1986 | D74: Vortrag | E74: Tödt | F74: Milchwerke Paderborn-Rimbeck: Milchwirtschaft-Zentralverwaltungswirtschaft? | G74: x
B75: 1986-06-11 | C75: 1986 | D75: Vortrag | E75: Daniel | F75: Veränderung in Landschaft und Bebauung unseres Raumes
A76: Dinger, Krause, Köhler | B76: 1986-07-09 | C76: 1986 | D76: Vortrag | E76: StD Ferlings | F76: Paderborn in Gegenwart und Zukunft
B77: 1986-07-20 | C77: 1986 | D77: Ausflug | F77: Familienausflug nach Dalheim, Hardehausen und Warburg Ausklang in der Diemelhütte, | G77: x
B78: 1986-09-24 | C78: 1986 | D78: Vortrag | E78: OKD Henke | F78: LC Carolus geht in die Luft Besichtigung des Flughafens Ahden | G78: x
B79: 1986-10-01 | C79: 1986 | D79: MV | E79: Henning | F79: Der Handelsrichter und sein Amt | I79: 60
B80: 1986-11-18 | C80: 1986 | D80: Besichtigung | E80: Dinger | F80: Weinprobe in Jaques' Weindepot | G80: x
B81: 1986-11-26 | C81: 1986 | D81: Besichtigung | F81: Besuch beim PZ Aufkl Btl. 7 in Augustdorf
B82: 1986-12-10 | C82: 1986 | D82: Vortrag | E82: RP Stich | F82: Die Bezirksregierung in Ostwestfalen und Lippe - altpreußische Behörde in nachpreußischer Zeit | H82: Gäste anderer LC
B83: 1986-12-12 | C83: 1986 | D83: Besichtigung | F83: Stadtkirche Büren mit vorweihnachtlicher Orgelmusik | G83: x
B84: 1986-12-19 | C84: 1986 | D84: Weihnachtsfeier | F84: im Kloster Corvey nach einem Besuch der Michaeliskirche auf dem Heiligenberg | G84: x
B85: 1987-01-14 | C85: 1987 | D85: Vortrag | E85: LG Präsident Safarovic | F85: Die Gerichtsbarkeit in Paderborn | G85: x
B86: 1987-01-28 | C86: 1987 | D86: Activity Abschluß | E86: Dr. Freigang | F86: in der Sparkasse, mit Lichtbildervortrag über Afghanistan | G86: x
B87: 1987-02-11 | C87: 1987 | D87: Besichtigung | E87: Dinger | F87: Nixdorf und Ahorn-Park | G87: x
B88: 1987-02-25 | C88: 1987 | D88: Vortrag | E88: Prof. Dr. Kettrup | F88: Die Belastung unserer Umwelt durch Chemikalien
B89: 1987-03-11 | C89: 1987 | D89: Vortrag | E89: Hornmann/Johannknecht | F89: Herstellung und Vertrieb von Möbeln
B90: 1987-03-25 | C90: 1987 | D90: Besichtigung | E90: Dinger | F90: Besuch der gräflichen Kurbetriebe in Bad Driburg | G90: x
B91: 1987-05-28 | C91: 1987 | D91: Fahrt | F91: Pfalz: Mainz, Kirchheimbolanden, Maikammer, | J91: Hast Du Riesling in der Blutbahn………
B92: 1987-05-13 | C92: 1987 | D92: Vortrag | E92: Generalvikar Kresing | F92: Das Erzbistum Paderborn
A93: Nöcker, Krause, Köhler | B93: 1987-07-08 | C93: 1987 | D93: Vortrag | E93: Gereon Fritz | F93: Paderborn und Le Mans Geschichte einer Städtefreundschaft
B94: 1987-09-23 | C94: 1987 | D94: Vortrag | E94: Eicker | F94: AIDS- ein Problem sachlich gesehen
B95: 1987-10-10 | C95: 1987 | D95: Besichtigung | F95: Besuch der Kunstsammlung NRW in Düsseldorf mit anschließendem Altstadtbummel | G95: x | I95: 72
B96: 1987-11-11 | C96: 1987 | D96: MV | E96: Thiele | F96: Blumen aus Amsterdam | I96: 74
B97: 1987-12-09 | C97: 1987 | D97: Besichtigung | E97: Nöcker | F97: Klinische Radiologie im St. Josefskrankenhaus
B98: 1987-12-19 | C98: 1987 | D98: Vortrag | E98: Ortner | F98: Begegnung in der Galerie B: Erich Rentrow: "Gemeinsam Gehen" Texte Musik Bilder | G98: x
B99: 1988-01-14 | C99: 1988 | D99: Vortrag | E99: Wellmann | F99: Der Schwarze Montag an den internationalen Börsen
B100: 1988-02-10 | C100: 1988 | D100: Vortrag | E100: R. Wichoczek | F100: Das moderne astronomische Weltbild
B101: 1988-03-09 | C101: 1988 | D101: Vortrag | E101: Dr. Keller | F101: Möglichkeiten moderner Tumortherapie
B102: 1988-04-13 | C102: 1988 | D102: MV | E102: M. Hornmann; G. Kosfeld | F102: Eine Reise nach Bangkok, Singapur und Australien; ein Bericht über einen Lions-Jugendaustausch | I102: 79
B103: 1988-05-12 | C103: 1988 | D103: Ausflug | F103: Familienausflug Radtour ins westliche Münsterland: Nordkirchen, Lüdinghausen, Burg Vischering | G103: x
B104: 1988-06-02 | C104: 1988 | D104: Besichtigung | E104: Niestendietrich | F104: VW in Wolfsburg | G104: x
A105: Daniel, Jacoby, Köhler | B105: 1988-07-06 | C105: 1988 | D105: Besichtigung | F105: Der Hohe Dom zu Paderborn; Kunsthistorische Führung durch Domprobst Drewes
B106: 1988-09-13 | C106: 1988 | D106: Besichtigung | F106: Wewelsburg Führung durch das Kreismuseum und die Gedenkstätte für die Opfer der KZ | G106: x
B107: 1988-10-11 | C107: 1988 | D107: Vortrag | E107: Wiedeking | F107: Subjektive und objektive Steuergerechtigkeit
B108: 1988-11-08 | C108: 1988 | D108: MV | E108: Niestendietrich | F108: Der Automobilmarkt der 90er Jahre | I108: 86
B109: 1988-12-13 | C109: 1988 | D109: Vortrag | E109: Prof. Dr. Peter Licher | F109: Die Funktion der Religion im Kampf um internationale Gerechtigkeit
B110: 1989-01-09 | C110: 1989 | D110: Vortrag | E110: Dr. Kühn München | F110: Gemäldefälschungen naturwissenschaftlich nachgewiesen | G110: x | H110: mit LC PB
B111: 1989-02-14 | C111: 1989 | D111: Vortrag | E111: Dr. W. Seidensticker | F111: Entwicklungen im Recht des Arbeitskampfes | H111: Governor
B112: 1989-03-14 | C112: 1989 | D112: Vortrag | E112: Lücke | F112: Hochtechnologische Produktion Fa. Lücke Glasmalerei Peters | G112: x
B113: 1989-04-11 | C113: 1989 | D113: MV | E113: Kruse | F113: Die öffentliche Verwaltung im Nahen Osten | I113: 91
B114: 1989-05-10 | C114: 1989 | D114: Besichtigung | F114: Westfälisches Freilichtmuseum Detmold, Hochschule für Musik
B115: 1989-06-13 | C115: 1989 | D115: Vortrag | E115: Dinger | F115: Der EG-Binnenmarkt, Auswirkungen auf Wirtschaft und Gesellschaft
A116: Krause, Wellmann, Köhler | B116: 1989-08-09 | C116: 1989 | D116: Besichtigung | F116: Weserrenaissance Schloß Brake und Stadt Lemgo | G116: x
B117: 1989-08-19 | C117: 1989 | D117: Besichtigung | E117: Krause | F117: Besuch des Pumpspeicherwerks Waldeck am Edersee | G117: x
B118: 1989-09-12 | C118: 1989 | D118: Vortrag | E118: Eicker | F118: Neue Erkenntnisse in der Aids-Forschung
B119: 1989-10-03 | C119: 1989 | D119: MV | E119: Wieneke | F119: Besondere Probleme eines Gemeindepfarrers in Sennelager | I119: 96
B120: 1989-11-10 | C120: 1989 | D120: Kochen bei PESAG | F120: Harmonisierung der EG-Gerichte, Eine unpolitische Aufgabe für Hobby-Köche | G120: x
B121: 1989-12-16 | C121: 1989 | D121: Weihnachtsfeier | F121: Weihnachtskonzert des Bielefelder Kinderchors, Museumsdorf Senne, Restaurant Buschkamp
B122: 1990-01-09 | C122: 1990 | D122: Vortrag | E122: KD Dr. Wesche | F122: Probleme der Eingliederung der Aussiedler betrachtet aus Paderborner Sicht
B123: 1990-03-06 | C123: 1990 | D123: Vortrag | E123: Tack | F123: Ausbildung unter dem Gesichtspunkt des EG-Binnenmarktes, Besichtigung des TBZ | H123: mit LC PB
B124: 1990-04-24 | C124: 1990 | D124: MV | E124: Kinne | F124: Sehanforderungen an einen Bildschirmarbeitsplatz | I124: 102
B125: 1990-05-08 | C125: 1990 | D125: Vortrag | E125: Ortner | F125: Künstliche Intelligenz | G125: x | H125: mit LC PB
B126: 1990-05-24 | C126: 1990 | D126: Fahrt | F126: Alsmeer | G126: x | I126: 103 ff
B127: 1990-06-12 | C127: 1990 | D127: Vortrag | E127: Krause | F127: Strom im Euro-Markt
A128: Friemuth, Wellmann, Lücke | B128: 1990-08-07 | C128: 1990 | D128: Vortrag | E128: W. Grabitz | F128: Quo vadis natura Kritische Anmerkungen zum "Paradies" vor unserer Haustür
B129: 1990-08-19 | C129: 1990 | D129: Ausflug | F129: Ausflug ins Waldecker Land | G129: x
B130: 1990-09-04 | C130: 1990 | D130: Vortrag | E130: Dr. Schneider | F130: Versorgung in Rumänien | G130: x
B131: 1990-10-02 | C131: 1990 | D131: MV | E131: Nöcker | F131: Öffentlichkeitsarbeit (und Dinger) | I131: 110
B132: 1990-11-06 | C132: 1990 | D132: Vortrag | E132: Rinneberg SW Paderborn | F132: Trinkwasser-Bedarf-Erschließung-Gefährdung
B133: 1990-12-04 | C133: =YEAR(B133) -> 1990 | D133: Weihnachtsfeier | F133: Meditation im Liborianum mit Ausklang im Rest. Amaretto | G133: x
B134: 1991-01-08 | C134: 1991 | D134: Vortrag | E134: Bruno Koch | F134: Schattenseiten des Überflusses
B135: 1991-01-25 | C135: 1991 | D135: Fahrt | F135: Erfurt, Jena, Gera, Weimar
B136: 1991-02-12 | C136: 1991 | D136: Vortrag | E136: Dinger | F136: Perspektiven der Neuen Bundesländer
B137: 1991-03-12 | C137: 1991 | D137: MV | I137: 116
B138: 1991-04-23 | C138: 1991 | D138: Vortrag | E138: Päsch PESAG | F138: Möglichkeiten der künftigen Klärschlammentsorgung
B139: 1991-05-07 | C139: 1991 | D139: Vortrag | E139: Eicker | F139: Belastung von Lebensmitteln mit Schadstoffen | G139: x
B140: 1991-06-08 | C140: 1991 | D140: Besuch LC Aalsmeer | F140: Essen im Ahornsportpark | G140: x
A141: Jacoby, Eicker, Lücke | B141: 1991-06-11 | C141: 1991 | D141: Vortrag | E141: Dr Becker | F141: Klimagutachten für die Stadt Paderborn
B142: 1991-07-09 | C142: 1991 | D142: Vortrag | E142: Dr. Hohmann | F142: Carolus Magnus: Namenspatron unseres Clubs
B143: 1991-08-31 | C143: 1991 | D143: Ausflug | E143: Jacoby | F143: Stift Neuenheerse und anschl. Sommerfest in Dringenberg bei L Jacoby | G143: x
B144: 1991-10-01 | C144: 1991 | D144: MV | I144: 123
B145: 1991-11-12 | C145: 1991 | D145: Vortrag | E145: Prof. Krawinkel | F145: Stand der Planungen zur Landesgartenschau mit dem Schwerpunktthema "Barockgarten"
B146: 1991-12-11 | C146: 1991 | D146: Weihnachtsfeier | E146: Prof. Kösters | F146: Kurhotel Bad Driburg; Aufnahme von Prof. Richard in den Club; Vortrag: Geschichte des Weihnachtsfestes | G146: x
B147: 1992-01-14 | C147: 1992 | D147: Vortrag | E147: DG Seppeler | F147: Arosa | H147: Governor
B148: 1992-02-11 | C148: 1992 | D148: Vortrag | E148: Feldmann | F148: 10 Jahre Lionsclub Carolus | G148: x
B149: 1992-03-10 | C149: 1992 | D149: MV | E149: Heinrichsmeier | F149: Hochschulen in den neuen Bundesländern | I149: 128
B150: 1992-03-20 | C150: 1992 | D150: 10-jährige Charterfeier unseres Clubs | H150: LC PB, Leo Club, Governor
B151: 1992-03-20 | C151: 1992 | D151: Vortrag | E151: Prof. Schmeken | F151: Die NRW-Gemeindeordnung Anspruch und Wirklichkeit | G151: x
B152: 1992-05-12 | C152: 1992 | D152: Vortrag | E152: Richard | F152: Hochschulausbildung am Wendepunkt?
B153: 1992-06-18 | C153: 1992 | D153: Fahrt | F153: Quedlinburg, Wernigerode | G153: x
B154: 1992-07-07 | C154: 1992 | D154: Vortrag | E154: Prof. Dr. Kögeler | F154: Evolution des Universums
A155: Feldmann, Eicker, Lücke | B155: 1992-09-08 | C155: 1992 | D155: Vortrag | E155: Prof. Liesen | F155: Ansichten eines Insiders
B156: 1992-10-13 | C156: 1992 | D156: MV | E156: Nöcker | F156: Neue Möglichkeiten der CT | I156: 133
B157: 1992-11-17 | C157: 1992 | D157: Kochen bei PESAG | F157: Vortrag für die Damen: Umweltbewußtes Handeln im Haushalt | G157: x
B158: 1992-12-15 | C158: 1992 | D158: Weihnachtsfeier | F158: Vorweihnachtliches Orgelkonzert Abdinghofkirche v.d. Kooi-Wolf; anschl. Cafe Bodemann | G158: x
B159: 1993-01-12 | C159: 1993 | D159: Vortrag | E159: Brinker | F159: 1 Jahr Radio Hochstift, Wie erfolgreich ist Paderborns erster Lokalsender?
B160: 1993-02-09 | C160: 1993 | D160: Vortrag | E160: StW Dannewald | F160: Erfahrungen eines Staatsanwalts in Brandenburg
B161: 1993-03-09 | C161: 1993 | D161: MV | E161: Kuhlenkamp | F161: Was man vom Erbrecht wissen sollte | I161: 138
B162: 1993-05-11 | C162: 1993 | D162: Vortrag | E162: Eicker | F162: Krankheiten im Vergleich ( alte-neue Bundeländer)
A163: Feldmann | B163: 1993-06-26 | C163: 1993 | D163: Besichtigung | F163: Fahrt durch die Senne | G163: x | H163: Leo Club
A164: Oberheide, Wiedeking, Henning | B164: 1993-07-06 | C164: 1993 | D164: Präsidentschaftsübergabe | F164: Präsidentschaftsübergabe
B165: 1993-09-14 | C165: 1993 | D165: Vortrag | E165: Müller | F165: Sinn und Unsinn von Tarifverträgen
B166: 1993-10-19 | C166: 1993 | D166: Vortrag | E166: G. Senn | F166: Wird die berufliche Bildung zum Stiefkind?
B167: 1993-11-08 | C167: 1993 | D167: Vortrag | E167: Frangi, PLO Büro Bonn | F167: Die aktuelle politische Lage im nahen Osten | H167: LC PB als Ausrichter
B168: 1993-12-07 | C168: 1993 | D168: Weihnachtsfeier | E168: 1. Satzung des Fördervereins verabschiedet | F168: Weihnachtsfeier im Gastlichen Dorf | G168: x
B169: 1994-01-25 | C169: 1994 | D169: Besichtigung | F169: Fa. Penn-Elastic GmbH | G169: x
B170: 1994-02-22 | C170: 1994 | D170: MV | E170: Oberheide | F170: anschließend: Bericht über Gründung des Fördervereins; Einkaufsstadt Paderborn | I170: 148
B171: 1994-03-22 | C171: 1994 | D171: Vortrag | E171: Weiland DAG | F171: Gewerkschaften-notwendiger denn je?!
B172: 1994-04-19 | C172: 1994 | D172: Vortrag | E172: Held, Bielefeld | F172: Go East-Step by step Erfahrungen eines Einzelhändlers in Moskau
B173: 1994-05-11 | C173: 1994 | D173: Fahrt | F173: Wien | G173: x | I173: 151
B174: 1994-06-18 | C174: 1994 | D174: Ausflug | E174: Oberheide | F174: Treffen beim Präsidenten bei der "Säuferklause" in Langeland-Erpentrup | G174: x
A175: Hornmann, Kuhlenkamp, Henning | B175: 1994-06-28 | C175: 1994 | D175: Präsidentschaftsübergabe | F175: Präsidentschaftsübergabe
B176: 1994-08-09 | C176: 1994 | D176: Vortrag | E176: Steinhard-Unseld | F176: Die Aufgabe und Bedeutung des Theaters in der heutigen Zeit | G176: x
B177: 1994-09-13 | C177: 1994 | D177: Besichtigung | E177: Pastor Johannsen | F177: Die Verantwortung für ältere Menschen am Beispiel des Johannisstiftes | G177: x
B178: 1994-10-11 | C178: 1994 | D178: Vortrag | E178: Behringer GF der SW PB | F178: Die Stadtwerke Paderborn GmbH
B179: 1994-11-11 | C179: 1994 | D179: Kochen bei PESAG | F179: Karnevalskochen | G179: x
B180: 1994-12-13 | C180: 1994 | D180: Weihnachtsfeier | F180: Heimathaus Sande mit Trompetenquartett der Jugendmusikschule | G180: x
B181: 1995-01-10 | C181: 1995 | D181: Vortrag | E181: Hornmann | F181: Das Arbeitnehmerüberlassungsgesetz
B182: 1995-02-02 | C182: 1995 | D182: Vortrag | E182: Herr Knickenberg | F182: Die Interessen der Industrie und des Handels bei der Stadtplanung | G182: x
B183: 1995-03-14 | C183: 1995 | D183: Vortrag | E183: Vollbach | F183: Hören heute
B184: 1995-05-09 | C184: 1995 | D184: Vortrag | E184: Wellmann | F184: Auswirkungen des Finanz-Förderungsgesetzes | G184: x
B185: 1995-06-13 | C185: 1995 | D185: MV | E185: Wieneke | F185: Aufnahmebeschluß Knickenberg; Die Kirche und ihre Mitbewerber in Form von Sekten | I185: 164
A186: Ammenwerth, Liemke, Wiedeking | B186: 1995-07-11 | C186: 1995 | D186: Vortrag | E186: Frau Meermeier | F186: Der Behinderte in unserer Gesellschaft | G186: x
B187: 1995-09-12 | C187: 1995 | D187: Besichtigung | F187: Kreisfeuerwehrzentrale am Flughafen in Paderborn/Ahden | G187: x
B188: 1995-10-10 | C188: 1995 | D188: MV | F188: Mitgliederversammlung | I188: 167
B189: 1995-10-24 | C189: 1995 | D189: Vortrag | E189: Prof. Miehlke | F189: Künstliche Gelenke | G189: x
B190: 1995-11-14 | C190: 1995 | D190: Vortrag | E190: Martiny | F190: Erkennungsmerkmale des deutschen Geldes Blüten-Kreditkartenbetrug | G190: x
B191: 1995-12-12 | C191: 1995 | D191: Weihnachtsfeier | F191: im Tönnchen | G191: x
B192: 1996-01-16 | C192: 1996 | D192: Vortrag | E192: Feldmann | F192: Siegerjustiz? Die Strafverfolgung von DDR-Unrechtstaten | G192: x
B193: 1996-02-13 | C193: 1996 | D193: Vortrag | E193: Prof. Kienecker | F193: Peter Hille- ein Paderborner Dichter | G193: x
B194: 1996-03-12 | C194: 1996 | D194: Vortrag | E194: Dr. Dörrscheid | F194: Jagd im Dunkeln - Das sonar der Fledermäuse
B195: 1996-04-16 | C195: 1996 | D195: MV | F195: Mitgliederversammlung Satzungsänderungen betr. Aufnahme von Mitgliedern | I195: 173
B196: 1996-05-14 | C196: 1996 | D196: Besichtigung | F196: Stiftung Naturschutz Senne | G196: x
B197: 1996-06-06 | C197: =YEAR(B197) -> 1996 | D197: Fahrt | F197: Fahrt ins Elsaß | G197: x
A198: Eicker, Krause, Wiedeking | B198: 1996-07-09 | C198: 1996 | D198: Präsidentschaftsübergabe | F198: Präsidentschaftsübergabe
B199: 1996-09-10 | C199: 1996 | D199: Vortrag | E199: OKD Wansleben | F199: Kommunalreform 1999 Situation im Kreis
B200: 1996-09-23 | C200: 1996 | D200: Besichtigung | F200: Führung durch das Fotolabor Intercolor Pad GmbH | G200: x
... 285 more rows

Sheet Priv. Ver.
A1: Erfaßt wurden nur reine Lionsveranstaltungen, keine Feiern, zu denen auch andere Gäste eingeladen wurden
A2: =COUNTA(B4:B501) -> 319 | B2: =SUBTOTAL(3,B4:B500) -> 319 | C2: Anzahl der Einladungen des ausgewählten Gastgebers | D2: =SUBTOTAL(3,D4:D500) -> 32
A3: Datum | B3: Gastgeber | C3: Besonderer Anlaß | D3: mit Damen
A4: 1981-09-23 | B4: Köhler
A5: 1981-10-07 | B5: Jacoby | C5: anl. des 75. -jähriges Geschäftsjubiläums | D5: x
A6: 1981-11-25 | B6: Krause | C6: noch kein Gästebuch vorhanden
A7: 1982-01-27 | B7: Kuhlenkamp | C7: noch kein Gästebuch vorhanden
A8: 1982-03-24 | B8: Friemuth | C8: noch kein Gästebuch vorhanden
A9: 1982-04-28 | B9: Liemke | C9: noch kein Gästebuch vorhanden
A10: 1982-05-26 | B10: Hornmann | C10: noch kein Gästebuch vorhanden
A11: 1982-06-23 | B11: Tietmeier
A12: 1982-07-14 | B12: Kuhlenkamp
A13: 1982-08-25 | B13: Henning
A14: 1982-10-20 | B14: Oberheide
A15: 1982-10-24 | B15: Dinger | C15: Frühschoppen als Einstand | D15: x
A16: 1983-01-26 | B16: Lücke
A17: 1983-02-23 | B17: Feldmann
A18: 1983-03-23 | B18: Johannknecht
A19: 1983-04-29 | B19: Schlewing
A20: 1983-05-25 | B20: Heinrichsmeier
A21: 1983-06-25 | B21: Liemke | C21: Abschluß des Lionsjahres auf dem Tennisplatz in Hövelhof | D21: x
A22: 1983-09-28 | B22: Lücke
A23: 1983-10-26 | B23: Kruse
A24: 1983-11-23 | B24: Nöcker
A25: 1984-01-25 | B25: Daniel
A26: 1984-02-22 | B26: Jacoby
A27: 1984-03-28 | B27: Henning
A28: 1984-04-25 | B28: Dinger
A29: 1984-05-23 | B29: Liemke
A30: 1984-08-22 | B30: Johannknecht | C30: Auftakt zum Präsidentenjahr | D30: x
A31: 1984-09-26 | B31: Kuhlenkamp
A32: 1984-10-31 | B32: Friemuth
A33: 1984-11-28 | B33: Feldmann
A34: 1985-01-23 | B34: Krause
A35: 1985-02-27 | B35: Nöcker
A36: 1985-03-27 | B36: Heinrichsmeier
A37: 1985-04-24 | B37: Ammenwerth | E37: Governorbesuch
A38: 1985-05-22 | B38: Hornmann
A39: 1985-07-24 | B39: Köhler | C39: Ferientreffen in der Sparkasse
A40: 1985-08-10 | B40: Friemuth | C40: Bilderabend für Frankenlandfahrer | D40: x
A41: 1985-09-25 | B41: Friemuth
A42: 1985-10-03 | B42: Tödt | C42: 40. Geburtstag | D42: x
A43: 1985-11-09 | B43: Tack | C43: 40. Geburtstag | D43: x
A44: 1986-11-22 | B44: Krause
A45: 1986-04-23 | B45: Dinger
A46: 1986-06-25 | B46: Feldmann | C46: 50. Geburtstag | D46: x
A47: 1986-07-20 | C47: Familienausflug Dalheim Hardehausen Warburg | D47: x
A48: 1986-09-05 | B48: Friemuth | C48: Ferienabschlußtreffen | D48: x
A49: 1986-09-24 | B49: Kruse | C49: 65. Geb. L Kruse im Adam- und-Eva-Haus | D49: x
A50: 1986-10-22 | B50: Ortner
A51: 1986-11-12 | B51: Henning
A52: 1987-06-10 | B52: Jacoby | C52: in Dringenberg
A53: 1987-06-24 | B53: Nöcker
A54: 1987-08-28 | B54: Nöcker | C54: Ferientreffen | D54: x
A55: 1987-09-09 | B55: Tack
A56: 1987-10-21 | B56: Lücke
A57: 1987-11-25 | B57: Daniel
A58: 1988-01-27 | B58: Liemke | C58: Paderborner Lions in Kanada
A59: 1988-02-24 | B59: Wellmann
A60: 1988-03-23 | B60: Henning
A61: 1988-04-27 | B61: Heinrichsmeier | C61: 60. Geb. | D61: x
A62: 1988-05-25 | B62: Hornmann
A63: 1988-06-15 | B63: Daniel | C63: 60. Geb. im Ahornpark | D63: x
A64: 1988-08-23 | B64: Johannknecht
A65: 1988-09-27 | B65: Lücke
A66: 1988-10-25 | B66: Wieneke
A67: 1988-11-22 | B67: Krause
A68: 1989-01-24 | B68: Nöcker
A69: 1989-02-28 | B69: Feldmann
A70: 1989-03-14 | B70: Lücke | C70: anl. Besichtigung Fa. Lödige und Glasmalerei Peters | D70: x | E70: ohne Gästebucheintrag
A71: 1989-04-25 | B71: Thiele
A72: 1989-05-23 | B72: Oberheide
A73: 1989-06-27 | B73: Tack
A74: 1989-08-29 | B74: Ammenwerth
A75: 1989-09-26 | B75: Kruse | C75: 68. Geburtstag
A76: 1989-10-24 | B76: Liemke
A77: 1989-11-21 | B77: Eicker
A78: 1990-01-23 | B78: Daniel
A79: 1990-03-27 | B79: Dinger
A80: 1990-05-22 | B80: Friemuth
A81: 1990-07-21 | B81: Friemuth | C81: Ferientreffen | D81: x
A82: 1990-08-21 | B82: Köhler
A83: 1990-09-18 | B83: Nöcker
A84: 1990-10-16 | B84: Wieneke
A85: 1990-11-20 | B85: Johannknecht
A86: 1990-12-18 | B86: Eicker
A87: 1991-01-22 | B87: Feldmann
A88: 1991-02-26 | B88: Jacoby
A89: 1991-03-26 | B89: Wiedeking
A90: 1991-04-09 | B90: Kuhlenkamp
A91: 1991-05-21 | B91: Lücke
A92: 1991-06-26 | B92: Friemuth | C92: Prof. Richard als Gast
A93: 1991-08-31 | B93: Jacoby | C93: Sommerfest nach Besichtigung Schloß Neuenheerse | D93: x
A94: 1991-09-24 | B94: Wellmann
A95: 1991-10-22 | B95: Thiele
A96: 1991-11-26 | B96: Krause
A97: 1992-01-21 | B97: Henning
A98: 1992-02-25 | B98: Daniel
A99: 1992-04-28 | B99: Heinrichsmeier
A100: 1992-05-26 | B100: Nöcker
A101: 1992-06-30 | B101: Kinne
A102: 1992-10-27 | B102: Wiedeking
A103: 1992-11-24 | B103: Eicker
A104: 1993-01-26 | B104: Liemke
A105: 1993-03-23 | B105: Wellmann
A106: 1993-04-20 | B106: Johannknecht
A107: 1993-05-25 | B107: Oberheide
A108: 1993-06-15 | B108: Hornmann
A109: 1993-08-21 | B109: Henning
A110: 1993-09-28 | B110: Kloke | C110: Gründungssitzung des Fördervereins
A111: 1994-11-01 | B111: Ammenwerth
A112: 1994-02-09 | B112: Daniel
A113: 1994-03-15 | B113: Wieneke
A114: 1994-05-03 | B114: Friemuth
A115: 1994-08-23 | B115: Wellmann
A116: 1994-09-27 | B116: Eicker
A117: 1994-10-25 | B117: Vollbach
A118: 1994-11-22 | B118: Krause
A119: 1995-01-24 | B119: Lücke
A120: 1995-02-21 | B120: Nöcker
A121: 1995-03-28 | B121: Henning
A122: 1995-04-25 | B122: Thiele
A123: 1995-05-23 | B123: Bartels
A124: 1995-07-01 | B124: Hornmann | C124: Präsidentschaftsübergabe beim Präsidenten | D124: x
A125: 1995-11-28 | B125: Jacoby
A126: 1996-01-23 | B126: Krause
A127: 1996-02-27 | B127: Eicker
A128: 1996-04-23 | B128: Daniel
A129: 1996-05-28 | B129: Friemuth
A130: 1996-06-25 | B130: Richard
A131: 1996-07-06 | B131: Ammenwerth | D131: x
A132: 1996-08-23 | B132: Johannknecht
A133: 1996-10-22 | B133: Eicker
A134: 1996-11-26 | B134: Oberheide
A135: 1997-02-25 | B135: Ammenwerth
A136: 1997-04-22 | B136: Vollbach
A137: 1997-05-27 | B137: Bartels
A138: 1997-08-09 | B138: Wellmann
A139: 1997-08-26 | B139: Friemuth
A140: 1997-09-23 | B140: Henning
A141: 1997-10-07 | B141: Hohenstein
A142: 1997-11-25 | B142: Feldmann
A143: 1998-01-27 | B143: Liemke
A144: 1998-02-24 | B144: Knickenberg
A145: 1998-03-24 | B145: Ortner
A146: 1998-04-28 | B146: Bartels
A147: 1998-05-26 | B147: Lücke
A148: 1998-06-23 | B148: Wellmann | C148: Präsidentschaftsübergabe
A149: 1998-08-23 | B149: Liemke | D149: x
A150: 1998-09-22 | B150: Henning
A151: 1998-10-20 | B151: Nöcker
A152: 1998-11-24 | B152: Martiny
A153: 1999-01-26 | B153: Knickenberg
A154: 1999-02-23 | B154: Friemuth
A155: 1999-03-23 | B155: Ammenwerth
A156: 1999-04-27 | B156: Richard
A157: 1999-05-28 | B157: Johannknecht
A158: 1999-06-27 | B158: Liemke | C158: Präsidentschaftsübergabe | D158: x
A159: 1999-08-31 | B159: Krause
A160: 1999-09-28 | B160: Krings
A161: 1999-10-26 | B161: Vollbach
A162: 1999-11-23 | B162: Wieneke
A163: 2000-01-11 | B163: Schreckenberg
A164: 2000-02-22 | B164: Ammenwerth
A165: 2000-03-21 | B165: Jacoby
A166: 2000-04-18 | B166: Richard
A167: 2000-05-16 | B167: Joepen
A168: 2000-06-13 | B168: Johannknecht
A169: 2000-08-15 | B169: Henning
A170: 2000-10-24 | B170: Ortner
A171: 2000-11-28 | B171: Nöcker
A172: 2000-01-09 | B172: Schreckenberg
A173: 2001-02-27 | B173: Tack
A174: 2001-03-27 | B174: Vollbach
A175: 2001-04-24 | B175: Richard
A176: 2001-05-29 | B176: Thiele
A177: 2001-06-23 | B177: Vollbach | C177: Präsidentschaftsübergabe | D177: x
A178: 2001-08-28 | B178: Krings
A179: 2001-09-11 | B179: Ammenwerth
A180: 2001-10-23 | B180: Hahn
A181: 2001-11-27 | B181: Jacoby
A182: 2002-01-29 | B182: Wellmann
A183: 2002-02-26 | B183: Feldmann
A184: 2002-03-19 | B184: Friemuth
A185: 2002-04-30 | B185: Bartels
A186: 2002-09-24 | B186: Henning
A187: 2002-10-22 | B187: Liemke
A188: 2003-01-07 | B188: Ortner
A189: 2003-03-25 | B189: Nöcker
A190: 2003-04-29 | B190: Preising
A191: 2003-06-10 | B191: Vollbach
A192: 2003-06-24 | B192: Ortner | C192: Präs.-übergabe - Kinder, wie die Zeit vergangen ist | D192: x
A193: 2003-09-23 | B193: Niggemeier
A194: 2003-10-28 | B194: Wellmann
A195: 2003-11-25 | B195: Schmidt
A196: 2004-01-27 | B196: Krause
A197: 2004-02-24 | B197: Knickenberg
A198: 2004-04-27 | B198: Wiedeking
A199: 2004-06-08 | B199: Schreckenberg | C199: Präsidentschaftsübergabe | D199: x
A200: 2004-07-13 | B200: Bartels
... 124 more rows

Sheet Ausw PA
B1: Mitglied seit | C1: ="Mitgliedsjahre bis Ende "&YEAR(TODAY()) -> Mitgliedsjahre bis Ende 2023 | D1: Private Abende | E1: alle x Jahre eingeladen
D2: =SUM(D3:D41) -> 262
A3: Ammenwerth | B3: 1983 | C3: =YEAR(TODAY())-B3+1 -> 41 | D3: =COUNTIF('Priv. Ver.'!$B:$B,$A3) -> 13 | E3: =IF(D3>0,ROUND(C3/D3,0),"") -> 3 | G3: Sortieren nach Namen
A4: Bartels | B4: 1993 | C4: 31 | D4: =COUNTIF('Priv. Ver.'!$B:$B,$A4) -> 11 | E4: 3
A5: Baur | B5: 2013 | C5: 11 | D5: =COUNTIF('Priv. Ver.'!$B:$B,$A5) -> 2 | E5: 6
A6: Bee | B6: 2013 | C6: 11 | D6: =COUNTIF('Priv. Ver.'!$B:$B,$A6) -> 1 | E6: 11
A7: Brors | B7: 2011 | C7: 13 | D7: =COUNTIF('Priv. Ver.'!$B:$B,$A7) -> 2 | E7: 7
A8: Feldmann | B8: 1981 | C8: 43 | D8: =COUNTIF('Priv. Ver.'!$B:$B,$A8) -> 10 | E8: 4
A9: Friemuth | B9: 1981 | C9: 43 | D9: =COUNTIF('Priv. Ver.'!$B:$B,$A9) -> 18 | E9: 2
A10: Gnisa | B10: 2009 | C10: 15 | D10: =COUNTIF('Priv. Ver.'!$B:$B,$A10) -> 2 | E10: 8
A11: Hollmann | B11: 2017 | C11: 7 | D11: =COUNTIF('Priv. Ver.'!$B:$B,$A11) -> 0
A12: Jacoby | B12: 1981 | C12: 43 | D12: =COUNTIF('Priv. Ver.'!$B:$B,$A12) -> 10 | E12: 4
A13: Joepen | B13: 1999 | C13: 25 | D13: =COUNTIF('Priv. Ver.'!$B:$B,$A13) -> 6 | E13: 4
A14: Johannknecht | B14: 1981 | C14: 43 | D14: =COUNTIF('Priv. Ver.'!$B:$B,$A14) -> 12 | E14: 4
A15: Käter | B15: 2018 | C15: 6 | D15: =COUNTIF('Priv. Ver.'!$B:$B,$A15) -> 0
A16: Keysers | B16: 2006 | C16: 18 | D16: =COUNTIF('Priv. Ver.'!$B:$B,$A16) -> 4 | E16: 5
A17: Knickenberg | B17: 1995 | C17: 29 | D17: =COUNTIF('Priv. Ver.'!$B:$B,$A17) -> 5 | E17: 6
A18: Krause | B18: 1981 | C18: 43 | D18: =COUNTIF('Priv. Ver.'!$B:$B,$A18) -> 14 | E18: 3
A19: Krings | B19: 1997 | C19: 27 | D19: =COUNTIF('Priv. Ver.'!$B:$B,$A19) -> 7 | E19: 4
A20: Kuhlenkamp | B20: 1981 | C20: 43 | D20: =COUNTIF('Priv. Ver.'!$B:$B,$A20) -> 5 | E20: 9
A21: Liemke | B21: 1981 | C21: 43 | D21: =COUNTIF('Priv. Ver.'!$B:$B,$A21) -> 13 | E21: 3
A22: Lücke | B22: 1981 | C22: 43 | D22: =COUNTIF('Priv. Ver.'!$B:$B,$A22) -> 11 | E22: 4
A23: Martiny | B23: 1992 | C23: 32 | D23: =COUNTIF('Priv. Ver.'!$B:$B,$A23) -> 7 | E23: 5
A24: Nöcker | B24: 1981 | C24: 43 | D24: =COUNTIF('Priv. Ver.'!$B:$B,$A24) -> 14 | E24: 3
A25: Oberheide | B25: 1981 | C25: 43 | D25: =COUNTIF('Priv. Ver.'!$B:$B,$A25) -> 5 | E25: 9
A26: Ortner | B26: 1985 | C26: 39 | D26: =COUNTIF('Priv. Ver.'!$B:$B,$A26) -> 8 | E26: 5
A27: Plonka | B27: 2011 | C27: 13 | D27: =COUNTIF('Priv. Ver.'!$B:$B,$A27) -> 3 | E27: 4
A28: Plückebaum | B28: 2019 | C28: 5 | D28: =COUNTIF('Priv. Ver.'!$B:$B,$A28) -> 0
A29: Preising | B29: 2001 | C29: 23 | D29: =COUNTIF('Priv. Ver.'!$B:$B,$A29) -> 3 | E29: 8
A30: Richard | B30: 1991 | C30: 33 | D30: =COUNTIF('Priv. Ver.'!$B:$B,$A30) -> 7 | E30: 5
A31: Rimrod | B31: 2015 | C31: 9 | D31: =COUNTIF('Priv. Ver.'!$B:$B,$A31) -> 0
A32: Schmidt | B32: 2002 | C32: 22 | D32: =COUNTIF('Priv. Ver.'!$B:$B,$A32) -> 3 | E32: 7
A33: Schreckenberg | B33: 1997 | C33: 27 | D33: =COUNTIF('Priv. Ver.'!$B:$B,$A33) -> 8 | E33: 3
A34: Tack | B34: 1981 | C34: 43 | D34: =COUNTIF('Priv. Ver.'!$B:$B,$A34) -> 10 | E34: 4
A35: Thiele | B35: 1986 | C35: 38 | D35: =COUNTIF('Priv. Ver.'!$B:$B,$A35) -> 8 | E35: 5
A36: Thönissen | B36: 2001 | C36: 23 | D36: =COUNTIF('Priv. Ver.'!$B:$B,$A36) -> 4 | E36: 6
A37: Vollbach | B37: 1994 | C37: 30 | D37: =COUNTIF('Priv. Ver.'!$B:$B,$A37) -> 11 | E37: 3
A38: Wellmann | B38: 1987 | C38: 37 | D38: =COUNTIF('Priv. Ver.'!$B:$B,$A38) -> 11 | E38: 3
A39: Wiedeking | B39: 1987 | C39: 37 | D39: =COUNTIF('Priv. Ver.'!$B:$B,$A39) -> 8 | E39: 5
A40: Wieneke | B40: 1988 | C40: 36 | D40: =COUNTIF('Priv. Ver.'!$B:$B,$A40) -> 6 | E40: =IF(D39>0,ROUND(C39/D39,0),"") -> 5
A43: =COUNTA(A3:A41)&" Mitglieder" -> 38 Mitglieder
C44: max | D44: =MAX($D$3:$D$43) -> 18
C45: min | D45: =MIN($D$3:$D$43) -> 0
A48: Hahn | B48: 2001 | C48: =YEAR(TODAY())-B48+1 -> 23 | D48: =COUNTIF('Priv. Ver.'!$B:$B,$A48) -> 3 | E48: =IF(D48>0,ROUND(C48/D48,0),"") -> 8
A49: Huttrop-Hage | B49: 2006 | C49: =YEAR(TODAY())-B49+1 -> 18 | D49: =COUNTIF('Priv. Ver.'!$B:$B,$A49) -> 2 | E49: =IF(D49>0,ROUND(C49/D49,0),"") -> 9
A50: Henning | B50: 1981 | C50: =YEAR(TODAY())-B50+1 -> 43 | D50: =COUNTIF('Priv. Ver.'!$B:$B,$A50) -> 13 | E50: =IF(D50>0,ROUND(C50/D50,0),"") -> 3

Sheet Gr. Ver.

Sheet Gr. Damenbet.

Sheet Struk. Ver.
A1: Struktur der Veranstaltungen bis zum 30.6.2018
A2: lt. Blatt offizielle Veranstaltungen | B2: ='off. Ve.'!C2 -> 495
F4: Zusammenfassung
A5: Veranstaltungen | B5: =SUM(B7:B36) -> 463 | D5: Offizielle Veranstaltungen | E5: =B2 -> 495 | F5: Struktur der Veranstaltungen
D6: Private Veranstaltungen | E6: ='Priv. Ver.'!A2 -> 319
A7: Vortrag | B7: =COUNTIF('off. Ve.'!$D$5:$D$500,A7) -> 177 | D7: gesamt | E7: =SUM(E5:E6) -> 814 | F7: =SUM(F9:F17) -> 782 | G7: Veranstaltungen | H7: Diff | I7: =E7-F7 -> 32
A8: Besichtigung | B8: =COUNTIF('off. Ve.'!$D$5:$D$500,A8) -> 93
A9: MV | B9: =COUNTIF('off. Ve.'!$D$5:$D$500,A9) -> 71 | F9: =E6 -> 319 | G9: Private Veranstaltungen
A10: Weihnachtsfeier | B10: =COUNTIF('off. Ve.'!$D$5:$D$500,A10) -> 33 | F10: =B$7 -> 177 | G10: Vortrag
A11: Fahrt | B11: =COUNTIF('off. Ve.'!$D$5:$D$500,A11) -> 18 | F11: =$B$8 -> 93 | G11: Besichtigung
A12: Ausflug | B12: =COUNTIF('off. Ve.'!$D$5:$D$500,A12) -> 13 | F12: =B$9 -> 71 | G12: Mitgliederversammlungen
A13: Liboritreffen | B13: =COUNTIF('off. Ve.'!$D$5:$D$500,A13) -> 13 | F13: =$B$10+$B$18 -> 35 | G13: Weihnachtsfeiern+Weihnachtsbaumschlagen
A14: Gründungskreis | B14: =COUNTIF('off. Ve.'!$D$5:$D$500,A14) -> 7 | F14: =$B$11+$B$12 -> 31 | G14: Fahrten und Ausflüge
A15: Kochen bei PESAG | B15: =COUNTIF('off. Ve.'!$D$5:$D$500,A15) -> 5 | F15: =$B$13 -> 13 | G15: Liboritreffen
A16: Präsidentschaftsübergabe | B16: =COUNTIF('off. Ve.'!$D$5:$D$500,A16) -> 8 | F16: =$B$15 -> 5 | G16: Kochen bei PESAG
A17: Activity Abschluß | B17: =COUNTIF('off. Ve.'!$D$5:$D$500,A17) -> 3 | F17: =B14+B16+B17+B19+B20+B21+B22+B23+B24+B25+B26+B27+B28+B29+B30+B31+B32+B33+B34+B35+B36 -> 38 | G17: Sonstige
A18: Weihnachtsbaumschlagen | B18: =COUNTIF('off. Ve.'!$D$5:$D$500,A18) -> 2
A19: Golfturnier | B19: =COUNTIF('off. Ve.'!$D$5:$D$500,A19) -> 1 | F19: =SUM(F9:F18) -> 782
A20: Herrenabend | B20: =COUNTIF('off. Ve.'!$D$5:$D$500,A20) -> 1
A21: Informationen über Lions im Schweizer Haus | B21: =COUNTIF('off. Ve.'!$D$5:$D$500,A21) -> 1
A22: interne Gründungsversammlung | B22: =COUNTIF('off. Ve.'!$D$5:$D$500,A22) -> 1
A23: offizielle Gründungsversammlung | B23: =COUNTIF('off. Ve.'!$D$5:$D$500,A23) -> 1
A24: Charterfeier | B24: =COUNTIF('off. Ve.'!$D$5:$D$500,A24) -> 1
A25: Besuch LC Aalsmeer | B25: =COUNTIF('off. Ve.'!$D$5:$D$500,A25) -> 1
A26: Konzertbesuch | B26: =COUNTIF('off. Ve.'!$D$5:$D$500,A26) -> 2
A27: Valentins Redoute | B27: =COUNTIF('off. Ve.'!$D$5:$D$500,A27) -> 1
A28: 10-jährige Charterfeier unseres Clubs | B28: =COUNTIF('off. Ve.'!$D$5:$D$500,A28) -> 1
A29: 20 Jahre-Jubiläumsfeier | B29: =COUNTIF('off. Ve.'!$D$5:$D$500,A29) -> 1
A30: 25 Jahre Jubiläumsball | B30: =COUNTIF('off. Ve.'!$D$5:$D$500,A30) -> 1
A31: Stadtführung | B31: =COUNTIF('off. Ve.'!$D$5:$D$500,A31) -> 1
A32: Theaterbesuch | B32: =COUNTIF('off. Ve.'!$D$5:$D$500,A32) -> 1
A33: EON-Reiter CUP | B33: =COUNTIF('off. Ve.'!$D$5:$D$500,A33) -> 1
A34: Auftakt Activity | B34: =COUNTIF('off. Ve.'!$D$5:$D$500,A34) -> 2
A35: Mit Friedrich Spee durch das Kirchenjahr Orgelkonzert in der Marktkirche | B35: =COUNTIF('off. Ve.'!$D$5:$D$500,A35) -> 1
A36: Grünkohlessen | B36: 1

Sheet Vortr.-Damenbet.
A1: Vorträge | E1: Damenbeteiligung
B2: seit | C2: Mitglieds-jahre | D2: Vorträge bei Veran-staltungen | F2: Veranstaltungen gesamt | G2: Anzahl der offiziellen Veranstaltungen mit Damen
E3: Jahr | F3: =SUM(F4:F46) -> 478 | G3: =SUM(G5:G36) -> 222
A4: Ammenwerth | B4: 1983 | C4: =YEAR(TODAY())-B4+1 -> 41 | D4: =COUNTIF('off. Ve.'!$E:$E,A4) -> 3 | E4: 1980 | F4: =COUNTIF('off. Ve.'!$C$5:$C$364,E4) -> 1
A5: Bartels | B5: 1993 | C5: 31 | D5: =COUNTIF('off. Ve.'!$E:$E,A5) -> 1 | E5: 1981 | F5: =COUNTIF('off. Ve.'!$C$5:$C$364,E5) -> 14 | G5: =COUNTA('off. Ve.'!G7:G19) -> 3 | H5: =G5/F5 -> 0.2142857143
A6: Baur | B6: 2013 | C6: 11 | D6: =COUNTIF('off. Ve.'!$E:$E,A6) -> 0 | E6: 1982 | F6: =COUNTIF('off. Ve.'!$C$5:$C$364,E6) -> 12 | G6: =COUNTA('off. Ve.'!G20:G31) -> 3 | H6: 0.25
A7: Bee | B7: 2013 | C7: 11 | D7: =COUNTIF('off. Ve.'!$E:$E,A7) -> 0 | E7: 1983 | F7: =COUNTIF('off. Ve.'!$C$5:$C$364,E7) -> 10 | G7: =COUNTA('off. Ve.'!G32:G41) -> 4 | H7: 0.4
A8: Brors | B8: 2011 | C8: 13 | E8: 1984 | F8: =COUNTIF('off. Ve.'!$C$5:$C$364,E8) -> 12 | G8: =COUNTA('off. Ve.'!G42:G53) -> 6 | H8: 0.5
A9: Feldmann | B9: 1981 | C9: 43 | D9: =COUNTIF('off. Ve.'!$E:$E,A9) -> 5 | E9: 1985 | F9: =COUNTIF('off. Ve.'!$C$5:$C$364,E9) -> 14 | G9: =COUNTA('off. Ve.'!G54:G67) -> 7 | H9: 0.5
A10: Friemuth | B10: 1981 | C10: 43 | D10: =COUNTIF('off. Ve.'!$E:$E,A10) -> 1 | E10: 1986 | F10: =COUNTIF('off. Ve.'!$C$5:$C$364,E10) -> 17 | G10: =COUNTA('off. Ve.'!G68:G84) -> 7 | H10: 0.4117647059
A11: Gnisa | B11: 2009 | C11: 15 | D11: =COUNTIF('off. Ve.'!$E:$E,A11) -> 1 | E11: 1987 | F11: =COUNTIF('off. Ve.'!$C$5:$C$364,E11) -> 14 | G11: =COUNTA('off. Ve.'!G85:G98) -> 6 | H11: 0.4285714286
A12: Hollmann | B12: 2017 | C12: 7 | E12: 1988 | F12: =COUNTIF('off. Ve.'!$C$5:$C$364,E12) -> 11 | G12: =COUNTA('off. Ve.'!G99:G109) -> 3 | H12: 0.2727272727
A13: Hahn | B13: 2001 | C13: 23 | D13: =COUNTIF('off. Ve.'!$E:$E,A13) -> 1 | E13: 1989 | F13: =COUNTIF('off. Ve.'!$C$5:$C$364,E13) -> 12 | G13: =COUNTA('off. Ve.'!G110:G121) -> 5 | H13: 0.4166666667
A14: Henning | B14: 1981 | C14: 43 | D14: =COUNTIF('off. Ve.'!$E:$E,A14) -> 1 | E14: 1990 | F14: =COUNTIF('off. Ve.'!$C$5:$C$364,E14) -> 12 | G14: =COUNTA('off. Ve.'!G122:G133) -> 5 | H14: 0.4166666667
A15: Huttrop-Hage | B15: 2006 | C15: 18 | D15: =COUNTIF('off. Ve.'!$E:$E,A15) -> 1 | E15: 1991 | F15: =COUNTIF('off. Ve.'!$C$5:$C$364,E15) -> 13 | G15: =COUNTA('off. Ve.'!G134:G146) -> 4 | H15: 0.3076923077
A16: Jacoby | B16: 1981 | C16: 43 | D16: =COUNTIF('off. Ve.'!$E:$E,A16) -> 4 | E16: 1992 | F16: =COUNTIF('off. Ve.'!$C$5:$C$364,E16) -> 12 | G16: =COUNTA('off. Ve.'!G147:G158) -> 5 | H16: 0.4166666667
A17: Joepen | B17: 1999 | C17: 25 | D17: =COUNTIF('off. Ve.'!$E:$E,A17) -> 1 | E17: 1993 | F17: =COUNTIF('off. Ve.'!$C$5:$C$364,E17) -> 10 | G17: =COUNTA('off. Ve.'!G159:G168) -> 2 | H17: 0.2
A18: Johannknecht | B18: 1981 | C18: 43 | D18: =COUNTIF('off. Ve.'!$E:$E,A18) -> 1 | E18: 1994 | F18: =COUNTIF('off. Ve.'!$C$5:$C$364,E18) -> 12 | G18: =COUNTA('off. Ve.'!G169:G180) -> 7 | H18: 0.5833333333
A19: Käter | B19: 2018 | C19: 6 | E19: 1995 | F19: =COUNTIF('off. Ve.'!$C$5:$C$364,E19) -> 11 | G19: =COUNTA('off. Ve.'!G181:G191) -> 7 | H19: 0.6363636364
A20: Keysers | B20: 2006 | C20: 18 | D20: =COUNTIF('off. Ve.'!$E:$E,A20) -> 1 | E20: 1996 | F20: =COUNTIF('off. Ve.'!$C$5:$C$364,E20) -> 12 | G20: =COUNTA('off. Ve.'!G192:G203) -> 7 | H20: 0.5833333333
A21: Knickenberg | B21: 1995 | C21: 29 | D21: =COUNTIF('off. Ve.'!$E:$E,A21) -> 0 | E21: 1997 | F21: =COUNTIF('off. Ve.'!$C$5:$C$364,E21) -> 9 | G21: =COUNTA('off. Ve.'!G204:G212) -> 3 | H21: 0.3333333333
A22: Krause | B22: 1981 | C22: 43 | D22: =COUNTIF('off. Ve.'!$E:$E,A22) -> 4 | E22: 1998 | F22: =COUNTIF('off. Ve.'!$C$5:$C$364,E22) -> 12 | G22: =COUNTA('off. Ve.'!G213:G224) -> 6 | H22: 0.5
A23: Krings | B23: 1997 | C23: 27 | D23: =COUNTIF('off. Ve.'!$E:$E,A23) -> 0 | E23: 1999 | F23: =COUNTIF('off. Ve.'!$C$5:$C$364,E23) -> 11 | G23: =COUNTA('off. Ve.'!G225:G235) -> 7 | H23: 0.6363636364
A24: Kuhlenkamp | B24: 1981 | C24: 43 | D24: =COUNTIF('off. Ve.'!$E:$E,A24) -> 2 | E24: 2000 | F24: =COUNTIF('off. Ve.'!$C$5:$C$364,E24) -> 13 | G24: =COUNTA('off. Ve.'!G236:G248) -> 8 | H24: 0.6153846154
A25: Liemke | B25: 1981 | C25: 43 | D25: =COUNTIF('off. Ve.'!$E:$E,A25) -> 4 | E25: 2001 | F25: =COUNTIF('off. Ve.'!$C$5:$C$364,E25) -> 12 | G25: =COUNTA('off. Ve.'!G249:G260) -> 9 | H25: 0.75
A26: Lücke | B26: 1981 | C26: 43 | D26: =COUNTIF('off. Ve.'!$E:$E,A26) -> 3 | E26: 2002 | F26: =COUNTIF('off. Ve.'!$C$5:$C$364,E26) -> 14 | G26: =COUNTA('off. Ve.'!G261:G274) -> 14 | H26: 1
A27: Martiny | B27: 1992 | C27: 32 | D27: =COUNTIF('off. Ve.'!$E:$E,A27) -> 2 | E27: 2003 | F27: =COUNTIF('off. Ve.'!$C$5:$C$364,E27) -> 11 | G27: =COUNTA('off. Ve.'!G275:G285) -> 9 | H27: 0.8181818182
A28: Nöcker | B28: 1981 | C28: 43 | D28: =COUNTIF('off. Ve.'!$E:$E,A28) -> 10 | E28: 2004 | F28: =COUNTIF('off. Ve.'!$C$5:$C$364,E28) -> 13 | G28: =COUNTA('off. Ve.'!G286:G298) -> 11 | H28: 0.8461538462
A29: Oberheide | B29: 1981 | C29: 43 | D29: =COUNTIF('off. Ve.'!$E:$E,A29) -> 3 | E29: 2005 | F29: =COUNTIF('off. Ve.'!$C$5:$C$364,E29) -> 10 | G29: =COUNTA('off. Ve.'!G299:G308) -> 7 | H29: 0.7
A30: Ortner | B30: 1985 | C30: 39 | D30: =COUNTIF('off. Ve.'!$E:$E,A30) -> 5 | E30: 2006 | F30: =COUNTIF('off. Ve.'!$C$5:$C$364,E30) -> 13 | G30: =COUNTA('off. Ve.'!G309:G321) -> 10 | H30: 0.7692307692
A31: Plonka | B31: 2011 | C31: 13 | E31: 2007 | F31: =COUNTIF('off. Ve.'!$C$5:$C$364,E31) -> 12 | G31: =COUNTA('off. Ve.'!G322:G333) -> 11 | H31: 0.9166666667
A32: Preising | B32: 2001 | C32: 23 | D32: =COUNTIF('off. Ve.'!$E:$E,A32) -> 0 | E32: 2008 | F32: =COUNTIF('off. Ve.'!$C$5:$C$364,E32) -> 14 | G32: =COUNTA('off. Ve.'!G334:G347) -> 10 | H32: 0.7142857143
A33: Richard | B33: 1991 | C33: 33 | D33: =COUNTIF('off. Ve.'!$E:$E,A33) -> 5 | E33: 2009 | F33: =COUNTIF('off. Ve.'!$C$5:$C$500,E33) -> 11 | G33: =COUNTA('off. Ve.'!G348:G358) -> 7 | H33: 0.6363636364
A34: Rimrod | B34: 2015 | C34: 9 | E34: 2010 | F34: =COUNTIF('off. Ve.'!$C$5:$C$500,E34) -> 11 | G34: =COUNTA('off. Ve.'!G359:G369) -> 7 | H34: =IF(F34>0,G34/F34,"") -> 0.6363636364 | I34: Rückgang, weil die MV nicht mehr mit anschließendem Vortrag, zu dem auch die Damen kamen
A35: Schmidt | B35: 2002 | C35: 22 | D35: =COUNTIF('off. Ve.'!$E:$E,A35) -> 1 | E35: 2011 | F35: =COUNTIF('off. Ve.'!$C$5:$C$500,E35) -> 14 | G35: =COUNTA('off. Ve.'!G370:G383) -> 12 | H35: 0.8571428571
A36: Schreckenberg | B36: 1997 | C36: 27 | D36: =COUNTIF('off. Ve.'!$E:$E,A36) -> 1 | E36: 2012 | F36: =COUNTIF('off. Ve.'!$C$5:$C$500,E36) -> 12 | G36: =COUNTA('off. Ve.'!G384:G395) -> 10 | H36: 0.8333333333
A37: Tack | B37: 1981 | C37: 43 | D37: =COUNTIF('off. Ve.'!$E:$E,A37) -> 2 | E37: 2013 | F37: =COUNTIF('off. Ve.'!$C$5:$C$500,E37) -> 12 | G37: =COUNTA('off. Ve.'!G396:G407) -> 10 | H37: 0.8333333333
A38: Thiele | B38: 1986 | C38: 38 | D38: =COUNTIF('off. Ve.'!$E:$E,A38) -> 4 | E38: 2014 | F38: =COUNTIF('off. Ve.'!$C$5:$C$500,E38) -> 12 | G38: =COUNTA('off. Ve.'!G408:G419) -> 10 | H38: 0.8333333333
A39: Thönissen | B39: 2001 | C39: 23 | D39: =COUNTIF('off. Ve.'!$E:$E,A39) -> 5 | E39: 2015 | F39: =COUNTIF('off. Ve.'!$C$5:$C$500,E39) -> 12 | G39: =COUNTA('off. Ve.'!G420:G433) -> 11 | H39: 0.9166666667
A40: Vollbach | B40: 1994 | C40: 30 | D40: =COUNTIF('off. Ve.'!$E:$E,A40) -> 1 | E40: 2016 | F40: =COUNTIF('off. Ve.'!$C$5:$C$500,E40) -> 15 | G40: =COUNTA('off. Ve.'!G434:G448) -> 13 | H40: 0.8666666667
A41: Wellmann | B41: 1987 | C41: 37 | D41: =COUNTIF('off. Ve.'!$E:$E,A41) -> 2 | E41: 2017 | F41: =COUNTIF('off. Ve.'!$C$5:$C$500,E41) -> 9 | G41: =COUNTA('off. Ve.'!G449:G464) -> 6 | H41: 0.6666666667
A42: Wiedeking | B42: 1987 | C42: 37 | D42: =COUNTIF('off. Ve.'!$E:$E,A42) -> 1 | E42: 2018 | F42: =COUNTIF('off. Ve.'!$C$5:$C$500,E42) -> 17
A43: Wieneke | B43: 1988 | C43: 36 | D43: =COUNTIF('off. Ve.'!$E:$E,A43) -> 2 | E43: 2019 | F43: =COUNTIF('off. Ve.'!$C$5:$C$500,E43) -> 10
E46: Mittelwert | H46: =AVERAGE(H5:H30) -> 0.5194892212
C47: Vorträge Höchstzahl eines LF | D47: =MAX(D4:D43) -> 10
A48: =COUNTA(A4:A45) -> 40
A49: =A48-3 -> 37 | B49: Mitgliederzahl

Sheet Gästeb.

Sheet Merk-Würdiges
A1: 1982-06-18 | B1: Charternight LC Weserbergland | C1: L Wieneke Gründungspräsident
A2: 1982 | B2: Aktion gem. mit Rotary | C2: Apell für verstärkte Lehrlingsausbildung
B3: Auszeichnungen unserer Mitglieder
A4: 1982 | B4: Kruse | C4: Charter Monarch 20 Years | E4: er beschließt einen Brief an den Präsidenten mit "With Lionistic Greetings"
A6: Jacoby | B6: Der Lions-Activitywagen steht bis zum Wechsel auf den Domplatz (2005?) in der Westernsraße gegenüber dem Geschäft Jacoby. Er spendiert uns den nötigen Strom und das Wasser
A7: Liemke | B7: stellte von Beginn an einen Wagen für die Activity zur Verfügung mit Transport an jedem Wochenende
A8: Oberheide | B8: erledigt seit Beginn die Activity-Standorte und Genehmigungen und Getränkebeschaffung
A9: 1982 | B9: an Wochenenden: erster Glühweinverkauf mit Hongkuchen; Wagen jeweils durch L Liemke vorbereitet und transportiert
A10: 1983 | B10: das geplante Weihnachtsbaumschlagen mußte abgesagt werden, weil die Forstverwaltung wegen der Diskussion um Sauren Regen und die Entwicklung des Waldes Bedenken hatte
A11: 1985 | B11: Wiederaufnahme des Weihnachtsbaumschlagens
A12: 1985 | B12: Probleme mit unserem Standort für die Activity; daraufhin wurde die Activity in die Zeit vom 27.1.-1.2.1986 verlegt Beginn des Schlußverkaufs L Oberheide heimlicher Activity-Beauftragter
A13: 1986 | B13: Ärger um die Kölner Stele: Jeder Club sollte nachträglich das "Geschenk" des Lions GD Köln durch eine Spende finanzieren, damit der ruf der Lions-Organisation nicht weiter beschädigt würde
A14: 1987 | B14: Fragebogen zum Thema Frauen als Mitglieder in Lions-Clubs Frauen als Clubmitglieder abgelehnt:
B15: Begründung durch den Präsidenten: Wir möchten auch weiterhin offene Gespräche in einer Männerrunde führen.
B16: Durch die Aufnahme von Frauen würden Spannungen in das Clubleben hineingetragen, die zwangsläufig im Verhältnis von Frauen als Mtglieder zu den Ehefrauen begründet wären.
A17: 1987 | B17: L Nowak Austritt empfohlen, weil wegen beruflicher Veränderung nach Augsburg 5 Jahre keine Teilnahme mehr erfolgte
A18: 1988-09-13 | B18: die Veranstaltungen des LC werden auf dienstags verlegt (wg. Mittwochs stattfindender Fußballübertragungen??)
A19: Ende 1990 | B19: Auf Initiative von Gundi Liemke fahren Gisela Thiele und Roswitha Dinger nach Rumänien 750 Care Pakete
B20: Gundi Liemke organisiert eine Fahrt zur Kunstinsel Homroich | C20: http://www.inselhombroich.de/
A22: 1999 | B22: werden bei der Activity erstmals Gutscheine im Wert von DM 10 angeboten, die am Stand eingelöst werden können.
A24: 2006 | B24: P Hahn, Jacoby und Nöcker bereiten den Jubiläumsball im Bürgerhaus Schloß-Neuhaus vor.
B25: Hierbei verwandelt Ellen Jacoby den nüchternen Bürgersaal in einen stimmungsvollen Ballsaal, ohne daß dem Lions-Club Kosten entstehen.
B30: Zonen oder Region Chairman
A31: 1992/93 | B31: Wellmann Zonenchairman
A32: ??? | B32: Bartels
A34: 2001 | B34: erste gemeinsame Activity mit Drei Hasen
A35: ? | B35: LEO-Club von bis

Sheet ehemalige
A2: Frühere Mitglieder unseres Clubs | C2: von | D2: bis | E2: Grund
A5: Daniel, Bernhard † | C5: 1981 | D5: 2004/05 | E5: Tod
A6: Dinger | C6: 1981 | D6: 1990/91 | E6: Berufl. Veränderung
A7: Eicker, Peter | C7: 1986 | D7: 1997/98 | E7: keine Angabe
A8: Gnisa, Jens | C8: 2009 | D8: 2021/22 | E8: Wechsel nach Detmold
A9: Hahn, Michael | B9: P | C9: 2001 | D9: 2014/15 | E9: Berufl. Veränderung
A10: Heinrichsmeier, Clemens | C10: 1981 | D10: 1997/98 | E10: Zeitl. Überlastung
A11: Henning, Hans † | B11: P | C11: 1981 | D11: 2016/17 | E11: Tod
A12: Hohenstein, Klaus | C12: 1997 | D12: 1999/00 | E12: Berufl. Veränderung
A13: Hornmann, Klaus † | C13: 1981 | D13: 1998/99 | E13: Tod
A14: Huttrop-Hage, Kai | C14: 2006 | D14: 2016/17 | E14: Berufl. Veränderung
A15: Johannknecht, Gerd† | C15: 1981 | D15: 2021/22 | E15: Tod
A16: Kinne | C16: 1989 | D16: 1992/93 | E16: Berufl. Veränderung
A17: Kloke
A18: Köhler | C18: 1981 | D18: 1990/91 | E18: Berufl. Veränderung
A19: Knickenberg, Manfred † | B19: P | C19: 1995 | D19: 2019/20 | E19: Tod
A20: Kruse † 1.5.1990 | C20: 1981 | D20: 1989/90 | E20: Tod
A21: Kuhlenkamp, Dieter † | B21: P | C21: 1981 | D21: 2018/19 | E21: Tod
A22: Liemke, Hartwig † | B22: P | C22: 1981 | D22: 2018/19 | E22: Tod
A23: Niggemeier | C23: 2001 | D23: 2006/07 | E23: Gründung des LC Salzkotten
A24: Niestendietrich | C24: 1987 | D24: 1993/94 | E24: Zeitl. Überlastung
A25: Nowak | C25: 1981 | D25: 1986/87 | E25: Berufl. Veränderung
A26: Schlewing | C26: 1981 | D26: 1981/82 | E26: Berufl. Veränderung
A27: Tödt | C27: 1984 | D27: 1987/88 | E27: Berufl. Veränderung
A28: Tietmeyer | C28: 1981 | D28: 1985/86 | E28: Berufl. Veränderung

Sheet wichtige MV
A1: Protokolle von Mitgliederversammlungen
B3: des Clubs | D3: des Förder-vereins
A5: 2000-10-10 | B5: MV | C5: Mitgliederwerbung vornehmlich durch jeweiligen Präsidenten und die drei jüngsten Mitglieder
C6: Über einen Antrag, Mitglieder, die sich nicht ordnungsgemäß zu den Veranstaltungen abmelden, namentlich in den Protokollen bzw. Berichten über die Veranstaltungen zu nennen, aus formalen Gründen nicht abgestimmt
C7: Hinweis auf beabsichtigte Gründung eines gemischten Clubs
B8: Anschreiben über MV | C8: zu den Clubabenden mit Damen sind auch die Partnerinnen alller Lionsfreunde herzlich eingeladen
A9: 2001-04-03 | B9: MV | C9: Erinnerung: angetragene Lionsämter können nur bei wichtigem Grund abgelehnt werden
C10: Ämterspiegel ausgeteilt
B11: MV | D11: FV
A12: 2001-03-12 | B12: MV | C12: Neufassung des Artikels 11 der Clubsatzung Neuaufnahmen
A13: 2001-11-13
